{"text_format":"1","workbook":"xlsx","n_sheets":7,"sheets":["Öğrenci Listesi","Hayat Bilgisi","Türkçe","Matematik","Görsel Sanatlar","Müzik","Beden Eğitimi"],"not_rendered":{"charts":0,"images":0,"macros":1,"external_links":0,"defined_names":6,"comments":1,"pivot_tables":0},"unopened":[],"bounds":{"document_bytes":16777216,"sheet_cells":100000,"rows_first":2000,"rows_last":500,"rows_between":2000,"halvings":0,"cell_chars":16384,"cell_head_chars":4096},"cells_cut":0,"cells_raw":0,"read":"whole","date_system":"1900"}

{"sheet":"Öğrenci Listesi","index":0,"n_rows":36,"n_cols":8,"rows_kept":36,"cut":false,"hidden":false,"merged":[[6,5,14,5],[16,5,16,6],[17,5,17,6]]}
["S. No","Okul No","Adı-Soyadı"]
[1,3,"Joud Akram Sadı Kallab"]
[2,324,"Ahmed Salih Bektaşoğlu",null,null,"Okulun Adı",":","Mehmet Akif Ersoy"]
[3,502,"Mehmet Nail Sırma",null,null,"Sınıf",":","1-A"]
[4,503,"Yunus Emre Özen",null,null,"Öğretim Yılı",":","2022-2023"]
[5,504,"Ömer Asaf Aydın",null,null,"Dönem ",":",1]
[6,505,"Emircan Balcı",null,null,"DERSLER",1,"HAYAT BİLGİSİ"]
[7,506,"Çınar Hayri Dilber",null,null,null,2,"TÜRKÇE"]
[8,507,"Ahmet Asaf Çil",null,null,null,3,"MATEMATİK"]
[9,508,"Yiğit Hamza Sarı",null,null,null,4,"GÖRSEL SANATLAR"]
[10,509,"Ahmet Yağız Birinci",null,null,null,5,"MÜZİK"]
[11,511,"Eyüp Yıldırım",null,null,null,6,"BEDEN EĞİTİMİ"]
[12,512,"Salih Emre Koç",null,null,null,7]
[13,513,"Recep Eymen Sarı",null,null,null,8]
[14,514,"Yiğitcan Düzenli",null,null,null,9]
[15,515,"Üveys Asaf Türkday"]
[16,516,"Havvanur Kefelioğlu",null,null,"             Seda DEMİR",null,"Davut HAMZAÇEBİ"]
[17,517,"Yağmur Çil",null,null,"          Sınıf Öğretmeni",null,"Okul Müdürü"]
[18,519,"Elanur Çelikbilek"]
[19,520,"Deniz Asaf Aydın"]
[20,522,"Yiğit Eymen Büyükkol"]
[21,523,"Yaren Su Şahin"]
[22,524,"Nuran Ece Yalpur"]
[23,525,"Elfin Figen Zeren"]
[24,526,"Amine Yılmaz"]
[25,527,"Berensu Taşkaya"]
[26,528,"Yüsra Dilek"]
[27,529,"Elif Acuner"]
[28,530,"Ebrar Aydın"]
[29,531,"Cansu Dayıoğlu"]
[30,532,"Feyzanur Bilir"]
[31,533,"Erva Akçay"]
[32,651,"Ecrin Zümra Gönci"]
[33,659,"Zeynep Sare Koç"]
[34,663,"Asel Berra Çalışkan"]
[35,670,"Züleyha Baş"]

{"sheet":"Hayat Bilgisi","index":1,"n_rows":37,"n_cols":40,"rows_kept":37,"cut":false,"hidden":false,"merged":[[0,0,0,39]]}
[{"$f":"UPPER(CONCATENATE('Öğrenci Listesi'!H3,\" İLKOKULU \",'Öğrenci Listesi'!H5,\" EĞİTİM ÖĞRETİM YILI \",'Öğrenci Listesi'!H4,\" SINIFI \",'Öğrenci Listesi'!H7,\" DERSİ \",'Öğrenci Listesi'!H6,\". DÖNEM KAZANIM DEĞERLENDİRME ÖLÇEĞİ\"))","v":"MEHMET AKİF ERSOY İLKOKULU 2022-2023 EĞİTİM ÖĞRETİM YILI 1-A SINIFI HAYAT BİLGİSİ DERSİ 1. DÖNEM KAZANIM DEĞERLENDİRME ÖLÇEĞİ"}]
["S.NO","OKUL NO",null,"Sınıf içi tanışma etkinliğine katılır.","Kendisiyle akranları arasındaki benzer ve farklı yönleri ayırt eder.","Okula geliş ve okuldan gidişlerde güvenlik kurallarına uyar.","Sınıfının okul içindeki yerini bulur.","Sınıf içerisinde bulunan ders araç ve gereçleri ile şeref köşesini tanır.","Bayrak töreninde nasıl davranması gerektiğini kavrar.","Okulunun bölümlerini tanır.","Tuvalet kullanma ve temizlik alışkanlığı geliştirir.","Okul çalışanlarını tanır.","İhtiyaç duyduğu durumlarda okul çalışanlarından yardım alır.","Sınıf içi kuralları belirleme sürecine katılır.","Okul kurallarına uyar.","Okulda iletişim kurarken nezaket kurallarına uyar","Okul içi etkinliklerde görev almaya istekli olur.","Oyunlara katılmaya ve oyun oynamaya istekli olur.","Okulla ilgili olumlu duygu ve düşünceler geliştirir.","Kullanacağı ders araç ve gereçlerini seçer.","Aile bireylerini tanıtır.","Aile hayatının önemini kavrar.",". Evinin yerini tarif eder.","Evde aile bireyleri ile iletişim kurarken nezaket kurallarına uyar.","Evdeki kaynakları verimli bir şekilde kullanır.","Gün içerisinde neler yapabileceğini planlar.","İstek ve ihtiyaçları arasındaki farkı ayırt eder.","Kişisel bakımını düzenli olarak yapar.","Sağlığını korumak için alması gereken önlemleri fark eder.",null,null,null,null,null,null,null,null,null,"ORTALAMA","SONUÇ"]
[{"$f":"IF('Öğrenci Listesi'!A2=\"\",\"\",'Öğrenci Listesi'!A2)","v":1},{"$f":"IF('Öğrenci Listesi'!B2=\"\",\"\",'Öğrenci Listesi'!B2)","v":3},{"$f":"IF('Öğrenci Listesi'!C2=\"\",\"\",'Öğrenci Listesi'!C2)","v":"Joud Akram Sadı Kallab"},null,null,null,null,null,null,null,null,null,null,null,null,null,null,null,null,null,null,null,null,null,null,null,null,null,null,null,null,null,null,null,null,null,null,null,{"$f":"IF(D3=\"\",\"\",AVERAGE(D3:AL3))","v":""},{"$f":"IF(D3=\"\",\"\",IF(AM3>2.49,\"ÇOKİYİ\",IF(AM3>1.49,\" İYİ\",IF(AM3>0,\"GELİŞTİRİLMELİ\"))))","v":""}]
[{"$f":"IF('Öğrenci Listesi'!A3=\"\",\"\",'Öğrenci Listesi'!A3)","v":2},{"$f":"IF('Öğrenci Listesi'!B3=\"\",\"\",'Öğrenci Listesi'!B3)","v":324},{"$f":"IF('Öğrenci Listesi'!C3=\"\",\"\",'Öğrenci Listesi'!C3)","v":"Ahmed Salih Bektaşoğlu"},null,null,null,null,null,null,null,null,null,null,null,null,null,null," ",null,null,null,null,null,null,null,null,null,null,null,null,null,null,null,null,null,null,null,null,{"$f":"IF(D4=\"\",\"\",AVERAGE(D4:AL4))","v":""},{"$f":"IF(D4=\"\",\"\",IF(AM4>2.49,\"ÇOKİYİ\",IF(AM4>1.49,\" İYİ\",IF(AM4>0,\"GELİŞTİRİLMELİ\"))))","v":""}]
[{"$f":"IF('Öğrenci Listesi'!A4=\"\",\"\",'Öğrenci Listesi'!A4)","v":3},{"$f":"IF('Öğrenci Listesi'!B4=\"\",\"\",'Öğrenci Listesi'!B4)","v":502},{"$f":"IF('Öğrenci Listesi'!C4=\"\",\"\",'Öğrenci Listesi'!C4)","v":"Mehmet Nail Sırma"},null,null,null,null,null,null,null,null,null,null,null,null,null,null,null,null,null,null,null,null,null,null,null,null,null,null,null,null,null,null,null,null,null,null,null,"",""]
[{"$f":"IF('Öğrenci Listesi'!A5=\"\",\"\",'Öğrenci Listesi'!A5)","v":4},{"$f":"IF('Öğrenci Listesi'!B5=\"\",\"\",'Öğrenci Listesi'!B5)","v":503},{"$f":"IF('Öğrenci Listesi'!C5=\"\",\"\",'Öğrenci Listesi'!C5)","v":"Yunus Emre Özen"},null,null,null,null,null,null,null,null,null,null,null,null,null,null,null,null,null,null,null,null,null,null,null,null,null,null,null,null,null,null,null,null,null,null,null,"",""]
[{"$f":"IF('Öğrenci Listesi'!A6=\"\",\"\",'Öğrenci Listesi'!A6)","v":5},{"$f":"IF('Öğrenci Listesi'!B6=\"\",\"\",'Öğrenci Listesi'!B6)","v":504},{"$f":"IF('Öğrenci Listesi'!C6=\"\",\"\",'Öğrenci Listesi'!C6)","v":"Ömer Asaf Aydın"},null,null,null,null,null,null,null,null,null,null,null,null,null,null,null,null,null,null,null,null,null,null,null,null,null,null,null,null,null,null,null,null,null,null,null,"",""]
[{"$f":"IF('Öğrenci Listesi'!A7=\"\",\"\",'Öğrenci Listesi'!A7)","v":6},{"$f":"IF('Öğrenci Listesi'!B7=\"\",\"\",'Öğrenci Listesi'!B7)","v":505},{"$f":"IF('Öğrenci Listesi'!C7=\"\",\"\",'Öğrenci Listesi'!C7)","v":"Emircan Balcı"},null,null,null,null,null,null,null,null,null,null,null,null,null,null,null,null,null,null,null,null,null,null,null,null,null,null,null,null,null,null,null,null,null,null,null,"",""]
[{"$f":"IF('Öğrenci Listesi'!A8=\"\",\"\",'Öğrenci Listesi'!A8)","v":7},{"$f":"IF('Öğrenci Listesi'!B8=\"\",\"\",'Öğrenci Listesi'!B8)","v":506},{"$f":"IF('Öğrenci Listesi'!C8=\"\",\"\",'Öğrenci Listesi'!C8)","v":"Çınar Hayri Dilber"},null,null,null,null,null,null,null,null,null,null,null,null,null,null,null,null,null,null,null,null,null,null,null,null,null,null,null,null,null,null,null,null,null,null,null,"",""]
[{"$f":"IF('Öğrenci Listesi'!A9=\"\",\"\",'Öğrenci Listesi'!A9)","v":8},{"$f":"IF('Öğrenci Listesi'!B9=\"\",\"\",'Öğrenci Listesi'!B9)","v":507},{"$f":"IF('Öğrenci Listesi'!C9=\"\",\"\",'Öğrenci Listesi'!C9)","v":"Ahmet Asaf Çil"},null,null,null,null,null,null,null,null,null,null,null,null,null,null,null,null,null,null,null,null,null,null,null,null,null,null,null,null,null,null,null,null,null,null,null,"",""]
[{"$f":"IF('Öğrenci Listesi'!A10=\"\",\"\",'Öğrenci Listesi'!A10)","v":9},{"$f":"IF('Öğrenci Listesi'!B10=\"\",\"\",'Öğrenci Listesi'!B10)","v":508},{"$f":"IF('Öğrenci Listesi'!C10=\"\",\"\",'Öğrenci Listesi'!C10)","v":"Yiğit Hamza Sarı"},null,null,null,null,null,null,null,null,null,null,null,null,null,null,null,null,null,null,null,null,null,null,null,null,null,null,null,null,null,null,null,null,null,null,null,"",""]
[{"$f":"IF('Öğrenci Listesi'!A11=\"\",\"\",'Öğrenci Listesi'!A11)","v":10},{"$f":"IF('Öğrenci Listesi'!B11=\"\",\"\",'Öğrenci Listesi'!B11)","v":509},{"$f":"IF('Öğrenci Listesi'!C11=\"\",\"\",'Öğrenci Listesi'!C11)","v":"Ahmet Yağız Birinci"},null,null,null,null,null,null,null,null,null,null,null,null,null,null,null,null,null,null,null,null,null,null,null,null,null,null,null,null,null,null,null,null,null,null,null,"",""]
[{"$f":"IF('Öğrenci Listesi'!A12=\"\",\"\",'Öğrenci Listesi'!A12)","v":11},{"$f":"IF('Öğrenci Listesi'!B12=\"\",\"\",'Öğrenci Listesi'!B12)","v":511},{"$f":"IF('Öğrenci Listesi'!C12=\"\",\"\",'Öğrenci Listesi'!C12)","v":"Eyüp Yıldırım"},null,null,null,null,null,null,null,null,null,null,null,null,null,null,null,null,null,null,null,null,null,null,null,null,null,null,null,null,null,null,null,null,null,null,null,"",""]
[{"$f":"IF('Öğrenci Listesi'!A13=\"\",\"\",'Öğrenci Listesi'!A13)","v":12},{"$f":"IF('Öğrenci Listesi'!B13=\"\",\"\",'Öğrenci Listesi'!B13)","v":512},{"$f":"IF('Öğrenci Listesi'!C13=\"\",\"\",'Öğrenci Listesi'!C13)","v":"Salih Emre Koç"},null,null,null,null,null,null,null,null,null,null,null,null,null,null,null,null,null,null,null,null,null,null,null,null,null,null,null,null,null,null,null,null,null,null,null,"",""]
[{"$f":"IF('Öğrenci Listesi'!A14=\"\",\"\",'Öğrenci Listesi'!A14)","v":13},{"$f":"IF('Öğrenci Listesi'!B14=\"\",\"\",'Öğrenci Listesi'!B14)","v":513},{"$f":"IF('Öğrenci Listesi'!C14=\"\",\"\",'Öğrenci Listesi'!C14)","v":"Recep Eymen Sarı"},null,null,null,null,null,null,null,null,null,null,null,null,null,null,null,null,null,null,null,null,null,null,null,null,null,null,null,null,null,null,null,null,null,null,null,"",""]
[{"$f":"IF('Öğrenci Listesi'!A15=\"\",\"\",'Öğrenci Listesi'!A15)","v":14},{"$f":"IF('Öğrenci Listesi'!B15=\"\",\"\",'Öğrenci Listesi'!B15)","v":514},{"$f":"IF('Öğrenci Listesi'!C15=\"\",\"\",'Öğrenci Listesi'!C15)","v":"Yiğitcan Düzenli"},null,null,null,null,null,null,null,null,null,null,null,null,null,null,null,null,null,null,null,null,null,null,null,null,null,null,null,null,null,null,null,null,null,null,null,"",""]
[{"$f":"IF('Öğrenci Listesi'!A16=\"\",\"\",'Öğrenci Listesi'!A16)","v":15},{"$f":"IF('Öğrenci Listesi'!B16=\"\",\"\",'Öğrenci Listesi'!B16)","v":515},{"$f":"IF('Öğrenci Listesi'!C16=\"\",\"\",'Öğrenci Listesi'!C16)","v":"Üveys Asaf Türkday"},null,null,null,null,null,null,null,null,null,null,null,null,null,null,null,null,null,null,null,null,null,null,null,null,null,null,null,null,null,null,null,null,null,null,null,"",""]
[{"$f":"IF('Öğrenci Listesi'!A17=\"\",\"\",'Öğrenci Listesi'!A17)","v":16},{"$f":"IF('Öğrenci Listesi'!B17=\"\",\"\",'Öğrenci Listesi'!B17)","v":516},{"$f":"IF('Öğrenci Listesi'!C17=\"\",\"\",'Öğrenci Listesi'!C17)","v":"Havvanur Kefelioğlu"},null,null,null,null,null,null,null,null,null,null,null,null,null,null,null,null,null,null,null,null,null,null,null,null,null,null,null,null,null,null,null,null,null,null,null,"",""]
[{"$f":"IF('Öğrenci Listesi'!A18=\"\",\"\",'Öğrenci Listesi'!A18)","v":17},{"$f":"IF('Öğrenci Listesi'!B18=\"\",\"\",'Öğrenci Listesi'!B18)","v":517},{"$f":"IF('Öğrenci Listesi'!C18=\"\",\"\",'Öğrenci Listesi'!C18)","v":"Yağmur Çil"},null,null,null,null,null,null,null,null,null,null,null,null,null,null,null,null,null,null,null,null,null,null,null,null,null,null,null,null,null,null,null,null,null,null,null,"",""]
[{"$f":"IF('Öğrenci Listesi'!A19=\"\",\"\",'Öğrenci Listesi'!A19)","v":18},{"$f":"IF('Öğrenci Listesi'!B19=\"\",\"\",'Öğrenci Listesi'!B19)","v":519},{"$f":"IF('Öğrenci Listesi'!C19=\"\",\"\",'Öğrenci Listesi'!C19)","v":"Elanur Çelikbilek"},null,null,null,null,null,null,null,null,null,null,null,null,null,null,null,null,null,null,null,null,null,null,null,null,null,null,null,null,null,null,null,null,null,null,null,"",""]
[{"$f":"IF('Öğrenci Listesi'!A20=\"\",\"\",'Öğrenci Listesi'!A20)","v":19},{"$f":"IF('Öğrenci Listesi'!B20=\"\",\"\",'Öğrenci Listesi'!B20)","v":520},{"$f":"IF('Öğrenci Listesi'!C20=\"\",\"\",'Öğrenci Listesi'!C20)","v":"Deniz Asaf Aydın"},null,null,null,null,null,null,null,null,null,null,null,null,null,null,null,null,null,null,null,null,null,null,null,null,null,null,null,null,null,null,null,null,null,null,null,"",""]
[{"$f":"IF('Öğrenci Listesi'!A21=\"\",\"\",'Öğrenci Listesi'!A21)","v":20},{"$f":"IF('Öğrenci Listesi'!B21=\"\",\"\",'Öğrenci Listesi'!B21)","v":522},{"$f":"IF('Öğrenci Listesi'!C21=\"\",\"\",'Öğrenci Listesi'!C21)","v":"Yiğit Eymen Büyükkol"},null,null,null,null,null,null,null,null,null,null,null,null,null,null,null,null,null,null,null,null,null,null,null,null,null,null,null,null,null,null,null,null,null,null,null,"",""]
[{"$f":"IF('Öğrenci Listesi'!A22=\"\",\"\",'Öğrenci Listesi'!A22)","v":21},{"$f":"IF('Öğrenci Listesi'!B22=\"\",\"\",'Öğrenci Listesi'!B22)","v":523},{"$f":"IF('Öğrenci Listesi'!C22=\"\",\"\",'Öğrenci Listesi'!C22)","v":"Yaren Su Şahin"},null,null,null,null,null,null,null,null,null,null,null,null,null,null,null,null,null,null,null,null,null,null,null,null,null,null,null,null,null,null,null,null,null,null,null,"",""]
[{"$f":"IF('Öğrenci Listesi'!A23=\"\",\"\",'Öğrenci Listesi'!A23)","v":22},{"$f":"IF('Öğrenci Listesi'!B23=\"\",\"\",'Öğrenci Listesi'!B23)","v":524},{"$f":"IF('Öğrenci Listesi'!C23=\"\",\"\",'Öğrenci Listesi'!C23)","v":"Nuran Ece Yalpur"},null,null,null,null,null,null,null,null,null,null,null,null,null,null,null,null,null,null,null,null,null,null,null,null,null,null,null,null,null,null,null,null,null,null,null,"",""]
[{"$f":"IF('Öğrenci Listesi'!A24=\"\",\"\",'Öğrenci Listesi'!A24)","v":23},{"$f":"IF('Öğrenci Listesi'!B24=\"\",\"\",'Öğrenci Listesi'!B24)","v":525},{"$f":"IF('Öğrenci Listesi'!C24=\"\",\"\",'Öğrenci Listesi'!C24)","v":"Elfin Figen Zeren"},null,null,null,null,null,null,null,null,null,null,null,null,null,null,null,null,null,null,null,null,null,null,null,null,null,null,null,null,null,null,null,null,null,null,null,"",""]
[{"$f":"IF('Öğrenci Listesi'!A25=\"\",\"\",'Öğrenci Listesi'!A25)","v":24},{"$f":"IF('Öğrenci Listesi'!B25=\"\",\"\",'Öğrenci Listesi'!B25)","v":526},{"$f":"IF('Öğrenci Listesi'!C25=\"\",\"\",'Öğrenci Listesi'!C25)","v":"Amine Yılmaz"},null,null,null,null,null,null,null,null,null,null,null,null,null,null,null,null,null,null,null,null,null,null,null,null,null,null,null,null,null,null,null,null,null,null,null,"",""]
[{"$f":"IF('Öğrenci Listesi'!A26=\"\",\"\",'Öğrenci Listesi'!A26)","v":25},{"$f":"IF('Öğrenci Listesi'!B26=\"\",\"\",'Öğrenci Listesi'!B26)","v":527},{"$f":"IF('Öğrenci Listesi'!C26=\"\",\"\",'Öğrenci Listesi'!C26)","v":"Berensu Taşkaya"},null,null,null,null,null,null,null,null,null,null,null,null,null,null,null,null,null,null,null,null,null,null,null,null,null,null,null,null,null,null,null,null,null,null,null,"",""]
[{"$f":"IF('Öğrenci Listesi'!A27=\"\",\"\",'Öğrenci Listesi'!A27)","v":26},{"$f":"IF('Öğrenci Listesi'!B27=\"\",\"\",'Öğrenci Listesi'!B27)","v":528},{"$f":"IF('Öğrenci Listesi'!C27=\"\",\"\",'Öğrenci Listesi'!C27)","v":"Yüsra Dilek"},null,null,null,null,null,null,null,null,null,null,null,null,null,null,null,null,null,null,null,null,null,null,null,null,null,null,null,null,null,null,null,null,null,null,null,"",""]
[{"$f":"IF('Öğrenci Listesi'!A28=\"\",\"\",'Öğrenci Listesi'!A28)","v":27},{"$f":"IF('Öğrenci Listesi'!B28=\"\",\"\",'Öğrenci Listesi'!B28)","v":529},{"$f":"IF('Öğrenci Listesi'!C28=\"\",\"\",'Öğrenci Listesi'!C28)","v":"Elif Acuner"},null,null,null,null,null,null,null,null,null,null,null,null,null,null,null,null,null,null,null,null,null,null,null,null,null,null,null,null,null,null,null,null,null,null,null,"",""]
[{"$f":"IF('Öğrenci Listesi'!A29=\"\",\"\",'Öğrenci Listesi'!A29)","v":28},{"$f":"IF('Öğrenci Listesi'!B29=\"\",\"\",'Öğrenci Listesi'!B29)","v":530},{"$f":"IF('Öğrenci Listesi'!C29=\"\",\"\",'Öğrenci Listesi'!C29)","v":"Ebrar Aydın"},null,null,null,null,null,null,null,null,null,null,null,null,null,null,null,null,null,null,null,null,null,null,null,null,null,null,null,null,null,null,null,null,null,null,null,"",""]
[{"$f":"IF('Öğrenci Listesi'!A30=\"\",\"\",'Öğrenci Listesi'!A30)","v":29},{"$f":"IF('Öğrenci Listesi'!B30=\"\",\"\",'Öğrenci Listesi'!B30)","v":531},{"$f":"IF('Öğrenci Listesi'!C30=\"\",\"\",'Öğrenci Listesi'!C30)","v":"Cansu Dayıoğlu"},null,null,null,null,null,null,null,null,null,null,null,null,null,null,null,null,null,null,null,null,null,null,null,null,null,null,null,null,null,null,null,null,null,null,null,"",""]
[{"$f":"IF('Öğrenci Listesi'!A31=\"\",\"\",'Öğrenci Listesi'!A31)","v":30},{"$f":"IF('Öğrenci Listesi'!B31=\"\",\"\",'Öğrenci Listesi'!B31)","v":532},{"$f":"IF('Öğrenci Listesi'!C31=\"\",\"\",'Öğrenci Listesi'!C31)","v":"Feyzanur Bilir"},null,null,null,null,null,null,null,null,null,null,null,null,null,null,null,null,null,null,null,null,null,null,null,null,null,null,null,null,null,null,null,null,null,null,null,"",""]
[{"$f":"IF('Öğrenci Listesi'!A32=\"\",\"\",'Öğrenci Listesi'!A32)","v":31},{"$f":"IF('Öğrenci Listesi'!B32=\"\",\"\",'Öğrenci Listesi'!B32)","v":533},{"$f":"IF('Öğrenci Listesi'!C32=\"\",\"\",'Öğrenci Listesi'!C32)","v":"Erva Akçay"},null,null,null,null,null,null,null,null,null,null,null,null,null,null,null,null,null,null,null,null,null,null,null,null,null,null,null,null,null,null,null,null,null,null,null,"",""]
[{"$f":"IF('Öğrenci Listesi'!A33=\"\",\"\",'Öğrenci Listesi'!A33)","v":32},{"$f":"IF('Öğrenci Listesi'!B33=\"\",\"\",'Öğrenci Listesi'!B33)","v":651},{"$f":"IF('Öğrenci Listesi'!C33=\"\",\"\",'Öğrenci Listesi'!C33)","v":"Ecrin Zümra Gönci"},null,null,null,null,null,null,null,null,null,null,null,null,null,null,null,null,null,null,null,null,null,null,null,null,null,null,null,null,null,null,null,null,null,null,null,"",""]
[{"$f":"IF('Öğrenci Listesi'!A34=\"\",\"\",'Öğrenci Listesi'!A34)","v":33},{"$f":"IF('Öğrenci Listesi'!B34=\"\",\"\",'Öğrenci Listesi'!B34)","v":659},{"$f":"IF('Öğrenci Listesi'!C34=\"\",\"\",'Öğrenci Listesi'!C34)","v":"Zeynep Sare Koç"},null,null,null,null,null,null,null,null,null,null,null,null,null,null,null,null,null,null,null,null,null,null,null,null,null,null,null,null,null,null,null,null,null,null,null,"",""]
[{"$f":"IF('Öğrenci Listesi'!A35=\"\",\"\",'Öğrenci Listesi'!A35)","v":34},{"$f":"IF('Öğrenci Listesi'!B35=\"\",\"\",'Öğrenci Listesi'!B35)","v":663},{"$f":"IF('Öğrenci Listesi'!C35=\"\",\"\",'Öğrenci Listesi'!C35)","v":"Asel Berra Çalışkan"},null,null,null,null,null,null,null,null,null,null,null,null,null,null,null,null,null,null,null,null,null,null,null,null,null,null,null,null,null,null,null,null,null,null,null,"",""]
[{"$f":"IF('Öğrenci Listesi'!A36=\"\",\"\",'Öğrenci Listesi'!A36)","v":35},{"$f":"IF('Öğrenci Listesi'!B36=\"\",\"\",'Öğrenci Listesi'!B36)","v":670},{"$f":"IF('Öğrenci Listesi'!C36=\"\",\"\",'Öğrenci Listesi'!C36)","v":"Züleyha Baş"},null,null,null,null,null,null,null,null,null,null,null,null,null,null,null,null,null,null,null,null,null,null,null,null,null,null,null,null,null,null,null,null,null,null,null,"",""]

{"sheet":"Türkçe","index":2,"n_rows":37,"n_cols":40,"rows_kept":37,"cut":false,"hidden":false,"merged":[[0,0,0,39]]}
[{"$f":"UPPER(CONCATENATE('Öğrenci Listesi'!H3,\" İLKOKULU \",'Öğrenci Listesi'!H5,\" EĞİTİM ÖĞRETİM YILI \",'Öğrenci Listesi'!H4,\" SINIFI \",'Öğrenci Listesi'!H8,\" DERSİ \",'Öğrenci Listesi'!H6,\". DÖNEM KAZANIM DEĞERLENDİRME ÖLÇEĞİ\"))","v":"MEHMET AKİF ERSOY İLKOKULU 2022-2023 EĞİTİM ÖĞRETİM YILI 1-A SINIFI TÜRKÇE DERSİ 1. DÖNEM KAZANIM DEĞERLENDİRME ÖLÇEĞİ"}]
["S.NO","OKUL NO",null,"Doğal ve yapay ses kaynaklarından çıkan sesleri ayırt eder.","Duyduğu sesleri taklit eder.","Sözlü yönergeleri uygular.","Dinleme stratejilerini uygular.","Konuşmacının sözlü olmayan mesajlarını kavrar.","Hazırlıksız konuşmalar yapar.","Çerçevesi belirli bir konu hakkında konuşur.","Konuşma stratejilerini uygular.","Okuma materyalindeki temel bölümleri tanır.","Boyama ve çizgi çalışmaları yapar.","Seslere karşılık gelen harfleri ayırt eder.","Dinlediklerine/izlediklerine yönelik sorulara cevap verir.","Kelimeleri anlamlarına uygun kullanır.","Harfleri tanır ve seslendirir.","Heceleri ve kelimeleri okur.","Görsellerle ilgili soruları cevaplar.","Harfleri tekniğine uygun yazar.","Heceler ve kelimeler yazar.","Rakamları tekniğine uygun yazar.","Anlamlı ve kurallı cümleler yazar","Harfler, kelimeler ve cümleler arasında uygun boşluklar bırakır.","Büyük harfleri ve noktalama işaretlerini uygun şekilde kullanır.","Yazdıklarını gözden geçirir.","Basit ve kısa cümleleri okur.","Kısa metinleri okur.","Yazdıklarını paylaşır.","Noktalama işaretlerine dikkat ederek okur.","Vurgu, tonlama ve telaffuza dikkat ederek okur.","Şiir okur.","Metinle ilgili soruları cevaplar.","Okuduklarını ana hatlarıyla anlatır.","Yazma çalışmaları yapar.","Yazma stratejilerini uygular.",null,null,"ORTALAMA","SONUÇ"]
[{"$f":"IF('Öğrenci Listesi'!A2=\"\",\"\",'Öğrenci Listesi'!A2)","v":1},{"$f":"IF('Öğrenci Listesi'!B2=\"\",\"\",'Öğrenci Listesi'!B2)","v":3},{"$f":"IF('Öğrenci Listesi'!C2=\"\",\"\",'Öğrenci Listesi'!C2)","v":"Joud Akram Sadı Kallab"},null,null,null,null,null,null,null,null,null,null,null,null,null,null,null,null,null,null,null,null,null,null,null,null,null,null,null,null,null,null,null,null,null,null,null,{"$f":"IF(D3=\"\",\"\",AVERAGE(D3:AL3))","v":""},{"$f":"IF(D3=\"\",\"\",IF(AM3>2.49,\"ÇOKİYİ\",IF(AM3>1.49,\" İYİ\",IF(AM3>0,\"GELİŞTİRİLMELİ\"))))","v":""}]
[{"$f":"IF('Öğrenci Listesi'!A3=\"\",\"\",'Öğrenci Listesi'!A3)","v":2},{"$f":"IF('Öğrenci Listesi'!B3=\"\",\"\",'Öğrenci Listesi'!B3)","v":324},{"$f":"IF('Öğrenci Listesi'!C3=\"\",\"\",'Öğrenci Listesi'!C3)","v":"Ahmed Salih Bektaşoğlu"},null,null,null,null,null,null,null,null,null,null,null,null,null,null," ",null,null,null,null,null,null,null,null,null,null,null,null,null,null,null,null,null,null,null,null,{"$f":"IF(D4=\"\",\"\",AVERAGE(D4:AL4))","v":""},{"$f":"IF(D4=\"\",\"\",IF(AM4>2.49,\"ÇOKİYİ\",IF(AM4>1.49,\" İYİ\",IF(AM4>0,\"GELİŞTİRİLMELİ\"))))","v":""}]
[{"$f":"IF('Öğrenci Listesi'!A4=\"\",\"\",'Öğrenci Listesi'!A4)","v":3},{"$f":"IF('Öğrenci Listesi'!B4=\"\",\"\",'Öğrenci Listesi'!B4)","v":502},{"$f":"IF('Öğrenci Listesi'!C4=\"\",\"\",'Öğrenci Listesi'!C4)","v":"Mehmet Nail Sırma"},null,null,null,null,null,null,null,null,null,null,null,null,null,null,null,null,null,null,null,null,null,null,null,null,null,null,null,null,null,null,null,null,null,null,null,"",""]
[{"$f":"IF('Öğrenci Listesi'!A5=\"\",\"\",'Öğrenci Listesi'!A5)","v":4},{"$f":"IF('Öğrenci Listesi'!B5=\"\",\"\",'Öğrenci Listesi'!B5)","v":503},{"$f":"IF('Öğrenci Listesi'!C5=\"\",\"\",'Öğrenci Listesi'!C5)","v":"Yunus Emre Özen"},null,null,null,null,null,null,null,null,null,null,null,null,null,null,null,null,null,null,null,null,null,null,null,null,null,null,null,null,null,null,null,null,null,null,null,"",""]
[{"$f":"IF('Öğrenci Listesi'!A6=\"\",\"\",'Öğrenci Listesi'!A6)","v":5},{"$f":"IF('Öğrenci Listesi'!B6=\"\",\"\",'Öğrenci Listesi'!B6)","v":504},{"$f":"IF('Öğrenci Listesi'!C6=\"\",\"\",'Öğrenci Listesi'!C6)","v":"Ömer Asaf Aydın"},null,null,null,null,null,null,null,null,null,null,null,null,null,null,null,null,null,null,null,null,null,null,null,null,null,null,null,null,null,null,null,null,null,null,null,"",""]
[{"$f":"IF('Öğrenci Listesi'!A7=\"\",\"\",'Öğrenci Listesi'!A7)","v":6},{"$f":"IF('Öğrenci Listesi'!B7=\"\",\"\",'Öğrenci Listesi'!B7)","v":505},{"$f":"IF('Öğrenci Listesi'!C7=\"\",\"\",'Öğrenci Listesi'!C7)","v":"Emircan Balcı"},null,null,null,null,null,null,null,null,null,null,null,null,null,null,null,null,null,null,null,null,null,null,null,null,null,null,null,null,null,null,null,null,null,null,null,"",""]
[{"$f":"IF('Öğrenci Listesi'!A8=\"\",\"\",'Öğrenci Listesi'!A8)","v":7},{"$f":"IF('Öğrenci Listesi'!B8=\"\",\"\",'Öğrenci Listesi'!B8)","v":506},{"$f":"IF('Öğrenci Listesi'!C8=\"\",\"\",'Öğrenci Listesi'!C8)","v":"Çınar Hayri Dilber"},null,null,null,null,null,null,null,null,null,null,null,null,null,null,null,null,null,null,null,null,null,null,null,null,null,null,null,null,null,null,null,null,null,null,null,"",""]
[{"$f":"IF('Öğrenci Listesi'!A9=\"\",\"\",'Öğrenci Listesi'!A9)","v":8},{"$f":"IF('Öğrenci Listesi'!B9=\"\",\"\",'Öğrenci Listesi'!B9)","v":507},{"$f":"IF('Öğrenci Listesi'!C9=\"\",\"\",'Öğrenci Listesi'!C9)","v":"Ahmet Asaf Çil"},null,null,null,null,null,null,null,null,null,null,null,null,null,null,null,null,null,null,null,null,null,null,null,null,null,null,null,null,null,null,null,null,null,null,null,"",""]
[{"$f":"IF('Öğrenci Listesi'!A10=\"\",\"\",'Öğrenci Listesi'!A10)","v":9},{"$f":"IF('Öğrenci Listesi'!B10=\"\",\"\",'Öğrenci Listesi'!B10)","v":508},{"$f":"IF('Öğrenci Listesi'!C10=\"\",\"\",'Öğrenci Listesi'!C10)","v":"Yiğit Hamza Sarı"},null,null,null,null,null,null,null,null,null,null,null,null,null,null,null,null,null,null,null,null,null,null,null,null,null,null,null,null,null,null,null,null,null,null,null,"",""]
[{"$f":"IF('Öğrenci Listesi'!A11=\"\",\"\",'Öğrenci Listesi'!A11)","v":10},{"$f":"IF('Öğrenci Listesi'!B11=\"\",\"\",'Öğrenci Listesi'!B11)","v":509},{"$f":"IF('Öğrenci Listesi'!C11=\"\",\"\",'Öğrenci Listesi'!C11)","v":"Ahmet Yağız Birinci"},null,null,null,null,null,null,null,null,null,null,null,null,null,null,null,null,null,null,null,null,null,null,null,null,null,null,null,null,null,null,null,null,null,null,null,"",""]
[{"$f":"IF('Öğrenci Listesi'!A12=\"\",\"\",'Öğrenci Listesi'!A12)","v":11},{"$f":"IF('Öğrenci Listesi'!B12=\"\",\"\",'Öğrenci Listesi'!B12)","v":511},{"$f":"IF('Öğrenci Listesi'!C12=\"\",\"\",'Öğrenci Listesi'!C12)","v":"Eyüp Yıldırım"},null,null,null,null,null,null,null,null,null,null,null,null,null,null,null,null,null,null,null,null,null,null,null,null,null,null,null,null,null,null,null,null,null,null,null,"",""]
[{"$f":"IF('Öğrenci Listesi'!A13=\"\",\"\",'Öğrenci Listesi'!A13)","v":12},{"$f":"IF('Öğrenci Listesi'!B13=\"\",\"\",'Öğrenci Listesi'!B13)","v":512},{"$f":"IF('Öğrenci Listesi'!C13=\"\",\"\",'Öğrenci Listesi'!C13)","v":"Salih Emre Koç"},null,null,null,null,null,null,null,null,null,null,null,null,null,null,null,null,null,null,null,null,null,null,null,null,null,null,null,null,null,null,null,null,null,null,null,"",""]
[{"$f":"IF('Öğrenci Listesi'!A14=\"\",\"\",'Öğrenci Listesi'!A14)","v":13},{"$f":"IF('Öğrenci Listesi'!B14=\"\",\"\",'Öğrenci Listesi'!B14)","v":513},{"$f":"IF('Öğrenci Listesi'!C14=\"\",\"\",'Öğrenci Listesi'!C14)","v":"Recep Eymen Sarı"},null,null,null,null,null,null,null,null,null,null,null,null,null,null,null,null,null,null,null,null,null,null,null,null,null,null,null,null,null,null,null,null,null,null,null,"",""]
[{"$f":"IF('Öğrenci Listesi'!A15=\"\",\"\",'Öğrenci Listesi'!A15)","v":14},{"$f":"IF('Öğrenci Listesi'!B15=\"\",\"\",'Öğrenci Listesi'!B15)","v":514},{"$f":"IF('Öğrenci Listesi'!C15=\"\",\"\",'Öğrenci Listesi'!C15)","v":"Yiğitcan Düzenli"},null,null,null,null,null,null,null,null,null,null,null,null,null,null,null,null,null,null,null,null,null,null,null,null,null,null,null,null,null,null,null,null,null,null,null,"",""]
[{"$f":"IF('Öğrenci Listesi'!A16=\"\",\"\",'Öğrenci Listesi'!A16)","v":15},{"$f":"IF('Öğrenci Listesi'!B16=\"\",\"\",'Öğrenci Listesi'!B16)","v":515},{"$f":"IF('Öğrenci Listesi'!C16=\"\",\"\",'Öğrenci Listesi'!C16)","v":"Üveys Asaf Türkday"},null,null,null,null,null,null,null,null,null,null,null,null,null,null,null,null,null,null,null,null,null,null,null,null,null,null,null,null,null,null,null,null,null,null,null,"",""]
[{"$f":"IF('Öğrenci Listesi'!A17=\"\",\"\",'Öğrenci Listesi'!A17)","v":16},{"$f":"IF('Öğrenci Listesi'!B17=\"\",\"\",'Öğrenci Listesi'!B17)","v":516},{"$f":"IF('Öğrenci Listesi'!C17=\"\",\"\",'Öğrenci Listesi'!C17)","v":"Havvanur Kefelioğlu"},null,null,null,null,null,null,null,null,null,null,null,null,null,null,null,null,null,null,null,null,null,null,null,null,null,null,null,null,null,null,null,null,null,null,null,"",""]
[{"$f":"IF('Öğrenci Listesi'!A18=\"\",\"\",'Öğrenci Listesi'!A18)","v":17},{"$f":"IF('Öğrenci Listesi'!B18=\"\",\"\",'Öğrenci Listesi'!B18)","v":517},{"$f":"IF('Öğrenci Listesi'!C18=\"\",\"\",'Öğrenci Listesi'!C18)","v":"Yağmur Çil"},null,null,null,null,null,null,null,null,null,null,null,null,null,null,null,null,null,null,null,null,null,null,null,null,null,null,null,null,null,null,null,null,null,null,null,"",""]
[{"$f":"IF('Öğrenci Listesi'!A19=\"\",\"\",'Öğrenci Listesi'!A19)","v":18},{"$f":"IF('Öğrenci Listesi'!B19=\"\",\"\",'Öğrenci Listesi'!B19)","v":519},{"$f":"IF('Öğrenci Listesi'!C19=\"\",\"\",'Öğrenci Listesi'!C19)","v":"Elanur Çelikbilek"},null,null,null,null,null,null,null,null,null,null,null,null,null,null,null,null,null,null,null,null,null,null,null,null,null,null,null,null,null,null,null,null,null,null,null,"",""]
[{"$f":"IF('Öğrenci Listesi'!A20=\"\",\"\",'Öğrenci Listesi'!A20)","v":19},{"$f":"IF('Öğrenci Listesi'!B20=\"\",\"\",'Öğrenci Listesi'!B20)","v":520},{"$f":"IF('Öğrenci Listesi'!C20=\"\",\"\",'Öğrenci Listesi'!C20)","v":"Deniz Asaf Aydın"},null,null,null,null,null,null,null,null,null,null,null,null,null,null,null,null,null,null,null,null,null,null,null,null,null,null,null,null,null,null,null,null,null,null,null,"",""]
[{"$f":"IF('Öğrenci Listesi'!A21=\"\",\"\",'Öğrenci Listesi'!A21)","v":20},{"$f":"IF('Öğrenci Listesi'!B21=\"\",\"\",'Öğrenci Listesi'!B21)","v":522},{"$f":"IF('Öğrenci Listesi'!C21=\"\",\"\",'Öğrenci Listesi'!C21)","v":"Yiğit Eymen Büyükkol"},null,null,null,null,null,null,null,null,null,null,null,null,null,null,null,null,null,null,null,null,null,null,null,null,null,null,null,null,null,null,null,null,null,null,null,"",""]
[{"$f":"IF('Öğrenci Listesi'!A22=\"\",\"\",'Öğrenci Listesi'!A22)","v":21},{"$f":"IF('Öğrenci Listesi'!B22=\"\",\"\",'Öğrenci Listesi'!B22)","v":523},{"$f":"IF('Öğrenci Listesi'!C22=\"\",\"\",'Öğrenci Listesi'!C22)","v":"Yaren Su Şahin"},null,null,null,null,null,null,null,null,null,null,null,null,null,null,null,null,null,null,null,null,null,null,null,null,null,null,null,null,null,null,null,null,null,null,null,"",""]
[{"$f":"IF('Öğrenci Listesi'!A23=\"\",\"\",'Öğrenci Listesi'!A23)","v":22},{"$f":"IF('Öğrenci Listesi'!B23=\"\",\"\",'Öğrenci Listesi'!B23)","v":524},{"$f":"IF('Öğrenci Listesi'!C23=\"\",\"\",'Öğrenci Listesi'!C23)","v":"Nuran Ece Yalpur"},null,null,null,null,null,null,null,null,null,null,null,null,null,null,null,null,null,null,null,null,null,null,null,null,null,null,null,null,null,null,null,null,null,null,null,"",""]
[{"$f":"IF('Öğrenci Listesi'!A24=\"\",\"\",'Öğrenci Listesi'!A24)","v":23},{"$f":"IF('Öğrenci Listesi'!B24=\"\",\"\",'Öğrenci Listesi'!B24)","v":525},{"$f":"IF('Öğrenci Listesi'!C24=\"\",\"\",'Öğrenci Listesi'!C24)","v":"Elfin Figen Zeren"},null,null,null,null,null,null,null,null,null,null,null,null,null,null,null,null,null,null,null,null,null,null,null,null,null,null,null,null,null,null,null,null,null,null,null,"",""]
[{"$f":"IF('Öğrenci Listesi'!A25=\"\",\"\",'Öğrenci Listesi'!A25)","v":24},{"$f":"IF('Öğrenci Listesi'!B25=\"\",\"\",'Öğrenci Listesi'!B25)","v":526},{"$f":"IF('Öğrenci Listesi'!C25=\"\",\"\",'Öğrenci Listesi'!C25)","v":"Amine Yılmaz"},null,null,null,null,null,null,null,null,null,null,null,null,null,null,null,null,null,null,null,null,null,null,null,null,null,null,null,null,null,null,null,null,null,null,null,"",""]
[{"$f":"IF('Öğrenci Listesi'!A26=\"\",\"\",'Öğrenci Listesi'!A26)","v":25},{"$f":"IF('Öğrenci Listesi'!B26=\"\",\"\",'Öğrenci Listesi'!B26)","v":527},{"$f":"IF('Öğrenci Listesi'!C26=\"\",\"\",'Öğrenci Listesi'!C26)","v":"Berensu Taşkaya"},null,null,null,null,null,null,null,null,null,null,null,null,null,null,null,null,null,null,null,null,null,null,null,null,null,null,null,null,null,null,null,null,null,null,null,"",""]
[{"$f":"IF('Öğrenci Listesi'!A27=\"\",\"\",'Öğrenci Listesi'!A27)","v":26},{"$f":"IF('Öğrenci Listesi'!B27=\"\",\"\",'Öğrenci Listesi'!B27)","v":528},{"$f":"IF('Öğrenci Listesi'!C27=\"\",\"\",'Öğrenci Listesi'!C27)","v":"Yüsra Dilek"},null,null,null,null,null,null,null,null,null,null,null,null,null,null,null,null,null,null,null,null,null,null,null,null,null,null,null,null,null,null,null,null,null,null,null,"",""]
[{"$f":"IF('Öğrenci Listesi'!A28=\"\",\"\",'Öğrenci Listesi'!A28)","v":27},{"$f":"IF('Öğrenci Listesi'!B28=\"\",\"\",'Öğrenci Listesi'!B28)","v":529},{"$f":"IF('Öğrenci Listesi'!C28=\"\",\"\",'Öğrenci Listesi'!C28)","v":"Elif Acuner"},null,null,null,null,null,null,null,null,null,null,null,null,null,null,null,null,null,null,null,null,null,null,null,null,null,null,null,null,null,null,null,null,null,null,null,"",""]
[{"$f":"IF('Öğrenci Listesi'!A29=\"\",\"\",'Öğrenci Listesi'!A29)","v":28},{"$f":"IF('Öğrenci Listesi'!B29=\"\",\"\",'Öğrenci Listesi'!B29)","v":530},{"$f":"IF('Öğrenci Listesi'!C29=\"\",\"\",'Öğrenci Listesi'!C29)","v":"Ebrar Aydın"},null,null,null,null,null,null,null,null,null,null,null,null,null,null,null,null,null,null,null,null,null,null,null,null,null,null,null,null,null,null,null,null,null,null,null,"",""]
[{"$f":"IF('Öğrenci Listesi'!A30=\"\",\"\",'Öğrenci Listesi'!A30)","v":29},{"$f":"IF('Öğrenci Listesi'!B30=\"\",\"\",'Öğrenci Listesi'!B30)","v":531},{"$f":"IF('Öğrenci Listesi'!C30=\"\",\"\",'Öğrenci Listesi'!C30)","v":"Cansu Dayıoğlu"},null,null,null,null,null,null,null,null,null,null,null,null,null,null,null,null,null,null,null,null,null,null,null,null,null,null,null,null,null,null,null,null,null,null,null,"",""]
[{"$f":"IF('Öğrenci Listesi'!A31=\"\",\"\",'Öğrenci Listesi'!A31)","v":30},{"$f":"IF('Öğrenci Listesi'!B31=\"\",\"\",'Öğrenci Listesi'!B31)","v":532},{"$f":"IF('Öğrenci Listesi'!C31=\"\",\"\",'Öğrenci Listesi'!C31)","v":"Feyzanur Bilir"},null,null,null,null,null,null,null,null,null,null,null,null,null,null,null,null,null,null,null,null,null,null,null,null,null,null,null,null,null,null,null,null,null,null,null,"",""]
[{"$f":"IF('Öğrenci Listesi'!A32=\"\",\"\",'Öğrenci Listesi'!A32)","v":31},{"$f":"IF('Öğrenci Listesi'!B32=\"\",\"\",'Öğrenci Listesi'!B32)","v":533},{"$f":"IF('Öğrenci Listesi'!C32=\"\",\"\",'Öğrenci Listesi'!C32)","v":"Erva Akçay"},null,null,null,null,null,null,null,null,null,null,null,null,null,null,null,null,null,null,null,null,null,null,null,null,null,null,null,null,null,null,null,null,null,null,null,"",""]
[{"$f":"IF('Öğrenci Listesi'!A33=\"\",\"\",'Öğrenci Listesi'!A33)","v":32},{"$f":"IF('Öğrenci Listesi'!B33=\"\",\"\",'Öğrenci Listesi'!B33)","v":651},{"$f":"IF('Öğrenci Listesi'!C33=\"\",\"\",'Öğrenci Listesi'!C33)","v":"Ecrin Zümra Gönci"},null,null,null,null,null,null,null,null,null,null,null,null,null,null,null,null,null,null,null,null,null,null,null,null,null,null,null,null,null,null,null,null,null,null,null,"",""]
[{"$f":"IF('Öğrenci Listesi'!A34=\"\",\"\",'Öğrenci Listesi'!A34)","v":33},{"$f":"IF('Öğrenci Listesi'!B34=\"\",\"\",'Öğrenci Listesi'!B34)","v":659},{"$f":"IF('Öğrenci Listesi'!C34=\"\",\"\",'Öğrenci Listesi'!C34)","v":"Zeynep Sare Koç"},null,null,null,null,null,null,null,null,null,null,null,null,null,null,null,null,null,null,null,null,null,null,null,null,null,null,null,null,null,null,null,null,null,null,null,"",""]
[{"$f":"IF('Öğrenci Listesi'!A35=\"\",\"\",'Öğrenci Listesi'!A35)","v":34},{"$f":"IF('Öğrenci Listesi'!B35=\"\",\"\",'Öğrenci Listesi'!B35)","v":663},{"$f":"IF('Öğrenci Listesi'!C35=\"\",\"\",'Öğrenci Listesi'!C35)","v":"Asel Berra Çalışkan"},null,null,null,null,null,null,null,null,null,null,null,null,null,null,null,null,null,null,null,null,null,null,null,null,null,null,null,null,null,null,null,null,null,null,null,"",""]
[{"$f":"IF('Öğrenci Listesi'!A36=\"\",\"\",'Öğrenci Listesi'!A36)","v":35},{"$f":"IF('Öğrenci Listesi'!B36=\"\",\"\",'Öğrenci Listesi'!B36)","v":670},{"$f":"IF('Öğrenci Listesi'!C36=\"\",\"\",'Öğrenci Listesi'!C36)","v":"Züleyha Baş"},null,null,null,null,null,null,null,null,null,null,null,null,null,null,null,null,null,null,null,null,null,null,null,null,null,null,null,null,null,null,null,null,null,null,null,"",""]

{"sheet":"Matematik","index":3,"n_rows":37,"n_cols":32,"rows_kept":37,"cut":false,"hidden":false,"merged":[[0,0,0,31]]}
[{"$f":"UPPER(CONCATENATE('Öğrenci Listesi'!H3,\" İLKOKULU \",'Öğrenci Listesi'!H5,\" EĞİTİM ÖĞRETİM YILI \",'Öğrenci Listesi'!H4,\" SINIFI \",'Öğrenci Listesi'!H9,\" DERSİ \",'Öğrenci Listesi'!H6,\". DÖNEM KAZANIM DEĞERLENDİRME ÖLÇEĞİ\"))","v":"MEHMET AKİF ERSOY İLKOKULU 2022-2023 EĞİTİM ÖĞRETİM YILI 1-A SINIFI MATEMATİK DERSİ 1. DÖNEM KAZANIM DEĞERLENDİRME ÖLÇEĞİ"}]
["S.NO","OKUL NO",null,"Uzamsal (durum, yer, yön) ilişkileri ifade eder.","Eş nesnelere örnekler verir.","Nesneleri kütleleri yönünden karşılaştırır ve sıralar.","Rakamları okur ve yazar.","Nesne sayısı 20’ye kadar (20 dâhil) olan bir topluluktaki nesnelerin sayısını belirler ve bu sayıyı rakamla yazar.","100’e kadar (100 dâhil) ileriye doğru birer, beşer ve onar ritmik sayar.","20’ye kadar (20 dâhil) ikişer ileriye, birer ve ikişer geriye sayar.","20’ye kadar (20 dâhil) olan sayılarda verilen bir sayıyı, büyüklük-küçüklük bakımından 10 sayısı ile karşılaştırır.","Miktarı 10 ile 20 (10 ve 20 dâhil) arasında olan bir grup nesneyi, onluk ve birliklerine ayırarak gösterir, bu nesnelere karşılık gelen sayıyı rakamlarla yazar ve okur.","Nesne sayıları 20’den az olan iki gruptaki nesneleri birebir eşler ve grupların nesne sayılarını karşılaştırır.","20’ye kadar (20 dâhil) olan sayıları sıra bildirmek amacıyla kullanır.","Toplama işleminin anlamını kavrar.","Toplamları 20’ye kadar (20 dâhil) olan doğal sayılarla toplama işlemini yapar.","Toplama işleminde toplananların yerleri değiştiğinde toplamın değişmediğini fark eder","Çıkarma işleminin anlamını kavrar","Paralarımızı tanır.",null,null,null,null,null,null,null,null,null,null,null,"ORTALAMA","SONUÇ"]
[{"$f":"IF('Öğrenci Listesi'!A2=\"\",\"\",'Öğrenci Listesi'!A2)","v":1},{"$f":"IF('Öğrenci Listesi'!B2=\"\",\"\",'Öğrenci Listesi'!B2)","v":3},{"$f":"IF('Öğrenci Listesi'!C2=\"\",\"\",'Öğrenci Listesi'!C2)","v":"Joud Akram Sadı Kallab"},null,null,null,null,null,null,null,null,null,null,null,null,null,null,null,null,null,null,null,null,null,null,null,null,null,null,null,{"$f":"IF(D3=\"\",\"\",AVERAGE(D3:AD3))","v":""},{"$f":"IF(D3=\"\",\"\",IF(AE3>2.49,\"ÇOKİYİ\",IF(AE3>1.49,\" İYİ\",IF(AE3>0,\"GELİŞTİRİLMELİ\"))))","v":""}]
[{"$f":"IF('Öğrenci Listesi'!A3=\"\",\"\",'Öğrenci Listesi'!A3)","v":2},{"$f":"IF('Öğrenci Listesi'!B3=\"\",\"\",'Öğrenci Listesi'!B3)","v":324},{"$f":"IF('Öğrenci Listesi'!C3=\"\",\"\",'Öğrenci Listesi'!C3)","v":"Ahmed Salih Bektaşoğlu"},null,null,null,null,null,null,null,null,null,null,null,null,null,null," ",null,null,null,null,null,null,null,null,null,null,null,null,{"$f":"IF(D4=\"\",\"\",AVERAGE(D4:AD4))","v":""},{"$f":"IF(D4=\"\",\"\",IF(AE4>2.49,\"ÇOKİYİ\",IF(AE4>1.49,\" İYİ\",IF(AE4>0,\"GELİŞTİRİLMELİ\"))))","v":""}]
[{"$f":"IF('Öğrenci Listesi'!A4=\"\",\"\",'Öğrenci Listesi'!A4)","v":3},{"$f":"IF('Öğrenci Listesi'!B4=\"\",\"\",'Öğrenci Listesi'!B4)","v":502},{"$f":"IF('Öğrenci Listesi'!C4=\"\",\"\",'Öğrenci Listesi'!C4)","v":"Mehmet Nail Sırma"},null,null,null,null,null,null,null,null,null,null,null,null,null,null,null,null,null,null,null,null,null,null,null,null,null,null,null,"",""]
[{"$f":"IF('Öğrenci Listesi'!A5=\"\",\"\",'Öğrenci Listesi'!A5)","v":4},{"$f":"IF('Öğrenci Listesi'!B5=\"\",\"\",'Öğrenci Listesi'!B5)","v":503},{"$f":"IF('Öğrenci Listesi'!C5=\"\",\"\",'Öğrenci Listesi'!C5)","v":"Yunus Emre Özen"},null,null,null,null,null,null,null,null,null,null,null,null,null,null,null,null,null,null,null,null,null,null,null,null,null,null,null,"",""]
[{"$f":"IF('Öğrenci Listesi'!A6=\"\",\"\",'Öğrenci Listesi'!A6)","v":5},{"$f":"IF('Öğrenci Listesi'!B6=\"\",\"\",'Öğrenci Listesi'!B6)","v":504},{"$f":"IF('Öğrenci Listesi'!C6=\"\",\"\",'Öğrenci Listesi'!C6)","v":"Ömer Asaf Aydın"},null,null,null,null,null,null,null,null,null,null,null,null,null,null,null,null,null,null,null,null,null,null,null,null,null,null,null,"",""]
[{"$f":"IF('Öğrenci Listesi'!A7=\"\",\"\",'Öğrenci Listesi'!A7)","v":6},{"$f":"IF('Öğrenci Listesi'!B7=\"\",\"\",'Öğrenci Listesi'!B7)","v":505},{"$f":"IF('Öğrenci Listesi'!C7=\"\",\"\",'Öğrenci Listesi'!C7)","v":"Emircan Balcı"},null,null,null,null,null,null,null,null,null,null,null,null,null,null,null,null,null,null,null,null,null,null,null,null,null,null,null,"",""]
[{"$f":"IF('Öğrenci Listesi'!A8=\"\",\"\",'Öğrenci Listesi'!A8)","v":7},{"$f":"IF('Öğrenci Listesi'!B8=\"\",\"\",'Öğrenci Listesi'!B8)","v":506},{"$f":"IF('Öğrenci Listesi'!C8=\"\",\"\",'Öğrenci Listesi'!C8)","v":"Çınar Hayri Dilber"},null,null,null,null,null,null,null,null,null,null,null,null,null,null,null,null,null,null,null,null,null,null,null,null,null,null,null,"",""]
[{"$f":"IF('Öğrenci Listesi'!A9=\"\",\"\",'Öğrenci Listesi'!A9)","v":8},{"$f":"IF('Öğrenci Listesi'!B9=\"\",\"\",'Öğrenci Listesi'!B9)","v":507},{"$f":"IF('Öğrenci Listesi'!C9=\"\",\"\",'Öğrenci Listesi'!C9)","v":"Ahmet Asaf Çil"},null,null,null,null,null,null,null,null,null,null,null,null,null,null,null,null,null,null,null,null,null,null,null,null,null,null,null,"",""]
[{"$f":"IF('Öğrenci Listesi'!A10=\"\",\"\",'Öğrenci Listesi'!A10)","v":9},{"$f":"IF('Öğrenci Listesi'!B10=\"\",\"\",'Öğrenci Listesi'!B10)","v":508},{"$f":"IF('Öğrenci Listesi'!C10=\"\",\"\",'Öğrenci Listesi'!C10)","v":"Yiğit Hamza Sarı"},null,null,null,null,null,null,null,null,null,null,null,null,null,null,null,null,null,null,null,null,null,null,null,null,null,null,null,"",""]
[{"$f":"IF('Öğrenci Listesi'!A11=\"\",\"\",'Öğrenci Listesi'!A11)","v":10},{"$f":"IF('Öğrenci Listesi'!B11=\"\",\"\",'Öğrenci Listesi'!B11)","v":509},{"$f":"IF('Öğrenci Listesi'!C11=\"\",\"\",'Öğrenci Listesi'!C11)","v":"Ahmet Yağız Birinci"},null,null,null,null,null,null,null,null,null,null,null,null,null,null,null,null,null,null,null,null,null,null,null,null,null,null,null,"",""]
[{"$f":"IF('Öğrenci Listesi'!A12=\"\",\"\",'Öğrenci Listesi'!A12)","v":11},{"$f":"IF('Öğrenci Listesi'!B12=\"\",\"\",'Öğrenci Listesi'!B12)","v":511},{"$f":"IF('Öğrenci Listesi'!C12=\"\",\"\",'Öğrenci Listesi'!C12)","v":"Eyüp Yıldırım"},null,null,null,null,null,null,null,null,null,null,null,null,null,null,null,null,null,null,null,null,null,null,null,null,null,null,null,"",""]
[{"$f":"IF('Öğrenci Listesi'!A13=\"\",\"\",'Öğrenci Listesi'!A13)","v":12},{"$f":"IF('Öğrenci Listesi'!B13=\"\",\"\",'Öğrenci Listesi'!B13)","v":512},{"$f":"IF('Öğrenci Listesi'!C13=\"\",\"\",'Öğrenci Listesi'!C13)","v":"Salih Emre Koç"},null,null,null,null,null,null,null,null,null,null,null,null,null,null,null,null,null,null,null,null,null,null,null,null,null,null,null,"",""]
[{"$f":"IF('Öğrenci Listesi'!A14=\"\",\"\",'Öğrenci Listesi'!A14)","v":13},{"$f":"IF('Öğrenci Listesi'!B14=\"\",\"\",'Öğrenci Listesi'!B14)","v":513},{"$f":"IF('Öğrenci Listesi'!C14=\"\",\"\",'Öğrenci Listesi'!C14)","v":"Recep Eymen Sarı"},null,null,null,null,null,null,null,null,null,null,null,null,null,null,null,null,null,null,null,null,null,null,null,null,null,null,null,"",""]
[{"$f":"IF('Öğrenci Listesi'!A15=\"\",\"\",'Öğrenci Listesi'!A15)","v":14},{"$f":"IF('Öğrenci Listesi'!B15=\"\",\"\",'Öğrenci Listesi'!B15)","v":514},{"$f":"IF('Öğrenci Listesi'!C15=\"\",\"\",'Öğrenci Listesi'!C15)","v":"Yiğitcan Düzenli"},null,null,null,null,null,null,null,null,null,null,null,null,null,null,null,null,null,null,null,null,null,null,null,null,null,null,null,"",""]
[{"$f":"IF('Öğrenci Listesi'!A16=\"\",\"\",'Öğrenci Listesi'!A16)","v":15},{"$f":"IF('Öğrenci Listesi'!B16=\"\",\"\",'Öğrenci Listesi'!B16)","v":515},{"$f":"IF('Öğrenci Listesi'!C16=\"\",\"\",'Öğrenci Listesi'!C16)","v":"Üveys Asaf Türkday"},null,null,null,null,null,null,null,null,null,null,null,null,null,null,null,null,null,null,null,null,null,null,null,null,null,null,null,"",""]
[{"$f":"IF('Öğrenci Listesi'!A17=\"\",\"\",'Öğrenci Listesi'!A17)","v":16},{"$f":"IF('Öğrenci Listesi'!B17=\"\",\"\",'Öğrenci Listesi'!B17)","v":516},{"$f":"IF('Öğrenci Listesi'!C17=\"\",\"\",'Öğrenci Listesi'!C17)","v":"Havvanur Kefelioğlu"},null,null,null,null,null,null,null,null,null,null,null,null,null,null,null,null,null,null,null,null,null,null,null,null,null,null,null,"",""]
[{"$f":"IF('Öğrenci Listesi'!A18=\"\",\"\",'Öğrenci Listesi'!A18)","v":17},{"$f":"IF('Öğrenci Listesi'!B18=\"\",\"\",'Öğrenci Listesi'!B18)","v":517},{"$f":"IF('Öğrenci Listesi'!C18=\"\",\"\",'Öğrenci Listesi'!C18)","v":"Yağmur Çil"},null,null,null,null,null,null,null,null,null,null,null,null,null,null,null,null,null,null,null,null,null,null,null,null,null,null,null,"",""]
[{"$f":"IF('Öğrenci Listesi'!A19=\"\",\"\",'Öğrenci Listesi'!A19)","v":18},{"$f":"IF('Öğrenci Listesi'!B19=\"\",\"\",'Öğrenci Listesi'!B19)","v":519},{"$f":"IF('Öğrenci Listesi'!C19=\"\",\"\",'Öğrenci Listesi'!C19)","v":"Elanur Çelikbilek"},null,null,null,null,null,null,null,null,null,null,null,null,null,null,null,null,null,null,null,null,null,null,null,null,null,null,null,"",""]
[{"$f":"IF('Öğrenci Listesi'!A20=\"\",\"\",'Öğrenci Listesi'!A20)","v":19},{"$f":"IF('Öğrenci Listesi'!B20=\"\",\"\",'Öğrenci Listesi'!B20)","v":520},{"$f":"IF('Öğrenci Listesi'!C20=\"\",\"\",'Öğrenci Listesi'!C20)","v":"Deniz Asaf Aydın"},null,null,null,null,null,null,null,null,null,null,null,null,null,null,null,null,null,null,null,null,null,null,null,null,null,null,null,"",""]
[{"$f":"IF('Öğrenci Listesi'!A21=\"\",\"\",'Öğrenci Listesi'!A21)","v":20},{"$f":"IF('Öğrenci Listesi'!B21=\"\",\"\",'Öğrenci Listesi'!B21)","v":522},{"$f":"IF('Öğrenci Listesi'!C21=\"\",\"\",'Öğrenci Listesi'!C21)","v":"Yiğit Eymen Büyükkol"},null,null,null,null,null,null,null,null,null,null,null,null,null,null,null,null,null,null,null,null,null,null,null,null,null,null,null,"",""]
[{"$f":"IF('Öğrenci Listesi'!A22=\"\",\"\",'Öğrenci Listesi'!A22)","v":21},{"$f":"IF('Öğrenci Listesi'!B22=\"\",\"\",'Öğrenci Listesi'!B22)","v":523},{"$f":"IF('Öğrenci Listesi'!C22=\"\",\"\",'Öğrenci Listesi'!C22)","v":"Yaren Su Şahin"},null,null,null,null,null,null,null,null,null,null,null,null,null,null,null,null,null,null,null,null,null,null,null,null,null,null,null,"",""]
[{"$f":"IF('Öğrenci Listesi'!A23=\"\",\"\",'Öğrenci Listesi'!A23)","v":22},{"$f":"IF('Öğrenci Listesi'!B23=\"\",\"\",'Öğrenci Listesi'!B23)","v":524},{"$f":"IF('Öğrenci Listesi'!C23=\"\",\"\",'Öğrenci Listesi'!C23)","v":"Nuran Ece Yalpur"},null,null,null,null,null,null,null,null,null,null,null,null,null,null,null,null,null,null,null,null,null,null,null,null,null,null,null,"",""]
[{"$f":"IF('Öğrenci Listesi'!A24=\"\",\"\",'Öğrenci Listesi'!A24)","v":23},{"$f":"IF('Öğrenci Listesi'!B24=\"\",\"\",'Öğrenci Listesi'!B24)","v":525},{"$f":"IF('Öğrenci Listesi'!C24=\"\",\"\",'Öğrenci Listesi'!C24)","v":"Elfin Figen Zeren"},null,null,null,null,null,null,null,null,null,null,null,null,null,null,null,null,null,null,null,null,null,null,null,null,null,null,null,"",""]
[{"$f":"IF('Öğrenci Listesi'!A25=\"\",\"\",'Öğrenci Listesi'!A25)","v":24},{"$f":"IF('Öğrenci Listesi'!B25=\"\",\"\",'Öğrenci Listesi'!B25)","v":526},{"$f":"IF('Öğrenci Listesi'!C25=\"\",\"\",'Öğrenci Listesi'!C25)","v":"Amine Yılmaz"},null,null,null,null,null,null,null,null,null,null,null,null,null,null,null,null,null,null,null,null,null,null,null,null,null,null,null,"",""]
[{"$f":"IF('Öğrenci Listesi'!A26=\"\",\"\",'Öğrenci Listesi'!A26)","v":25},{"$f":"IF('Öğrenci Listesi'!B26=\"\",\"\",'Öğrenci Listesi'!B26)","v":527},{"$f":"IF('Öğrenci Listesi'!C26=\"\",\"\",'Öğrenci Listesi'!C26)","v":"Berensu Taşkaya"},null,null,null,null,null,null,null,null,null,null,null,null,null,null,null,null,null,null,null,null,null,null,null,null,null,null,null,"",""]
[{"$f":"IF('Öğrenci Listesi'!A27=\"\",\"\",'Öğrenci Listesi'!A27)","v":26},{"$f":"IF('Öğrenci Listesi'!B27=\"\",\"\",'Öğrenci Listesi'!B27)","v":528},{"$f":"IF('Öğrenci Listesi'!C27=\"\",\"\",'Öğrenci Listesi'!C27)","v":"Yüsra Dilek"},null,null,null,null,null,null,null,null,null,null,null,null,null,null,null,null,null,null,null,null,null,null,null,null,null,null,null,"",""]
[{"$f":"IF('Öğrenci Listesi'!A28=\"\",\"\",'Öğrenci Listesi'!A28)","v":27},{"$f":"IF('Öğrenci Listesi'!B28=\"\",\"\",'Öğrenci Listesi'!B28)","v":529},{"$f":"IF('Öğrenci Listesi'!C28=\"\",\"\",'Öğrenci Listesi'!C28)","v":"Elif Acuner"},null,null,null,null,null,null,null,null,null,null,null,null,null,null,null,null,null,null,null,null,null,null,null,null,null,null,null,"",""]
[{"$f":"IF('Öğrenci Listesi'!A29=\"\",\"\",'Öğrenci Listesi'!A29)","v":28},{"$f":"IF('Öğrenci Listesi'!B29=\"\",\"\",'Öğrenci Listesi'!B29)","v":530},{"$f":"IF('Öğrenci Listesi'!C29=\"\",\"\",'Öğrenci Listesi'!C29)","v":"Ebrar Aydın"},null,null,null,null,null,null,null,null,null,null,null,null,null,null,null,null,null,null,null,null,null,null,null,null,null,null,null,"",""]
[{"$f":"IF('Öğrenci Listesi'!A30=\"\",\"\",'Öğrenci Listesi'!A30)","v":29},{"$f":"IF('Öğrenci Listesi'!B30=\"\",\"\",'Öğrenci Listesi'!B30)","v":531},{"$f":"IF('Öğrenci Listesi'!C30=\"\",\"\",'Öğrenci Listesi'!C30)","v":"Cansu Dayıoğlu"},null,null,null,null,null,null,null,null,null,null,null,null,null,null,null,null,null,null,null,null,null,null,null,null,null,null,null,"",""]
[{"$f":"IF('Öğrenci Listesi'!A31=\"\",\"\",'Öğrenci Listesi'!A31)","v":30},{"$f":"IF('Öğrenci Listesi'!B31=\"\",\"\",'Öğrenci Listesi'!B31)","v":532},{"$f":"IF('Öğrenci Listesi'!C31=\"\",\"\",'Öğrenci Listesi'!C31)","v":"Feyzanur Bilir"},null,null,null,null,null,null,null,null,null,null,null,null,null,null,null,null,null,null,null,null,null,null,null,null,null,null,null,"",""]
[{"$f":"IF('Öğrenci Listesi'!A32=\"\",\"\",'Öğrenci Listesi'!A32)","v":31},{"$f":"IF('Öğrenci Listesi'!B32=\"\",\"\",'Öğrenci Listesi'!B32)","v":533},{"$f":"IF('Öğrenci Listesi'!C32=\"\",\"\",'Öğrenci Listesi'!C32)","v":"Erva Akçay"},null,null,null,null,null,null,null,null,null,null,null,null,null,null,null,null,null,null,null,null,null,null,null,null,null,null,null,"",""]
[{"$f":"IF('Öğrenci Listesi'!A33=\"\",\"\",'Öğrenci Listesi'!A33)","v":32},{"$f":"IF('Öğrenci Listesi'!B33=\"\",\"\",'Öğrenci Listesi'!B33)","v":651},{"$f":"IF('Öğrenci Listesi'!C33=\"\",\"\",'Öğrenci Listesi'!C33)","v":"Ecrin Zümra Gönci"},null,null,null,null,null,null,null,null,null,null,null,null,null,null,null,null,null,null,null,null,null,null,null,null,null,null,null,"",""]
[{"$f":"IF('Öğrenci Listesi'!A34=\"\",\"\",'Öğrenci Listesi'!A34)","v":33},{"$f":"IF('Öğrenci Listesi'!B34=\"\",\"\",'Öğrenci Listesi'!B34)","v":659},{"$f":"IF('Öğrenci Listesi'!C34=\"\",\"\",'Öğrenci Listesi'!C34)","v":"Zeynep Sare Koç"},null,null,null,null,null,null,null,null,null,null,null,null,null,null,null,null,null,null,null,null,null,null,null,null,null,null,null,"",""]
[{"$f":"IF('Öğrenci Listesi'!A35=\"\",\"\",'Öğrenci Listesi'!A35)","v":34},{"$f":"IF('Öğrenci Listesi'!B35=\"\",\"\",'Öğrenci Listesi'!B35)","v":663},{"$f":"IF('Öğrenci Listesi'!C35=\"\",\"\",'Öğrenci Listesi'!C35)","v":"Asel Berra Çalışkan"},null,null,null,null,null,null,null,null,null,null,null,null,null,null,null,null,null,null,null,null,null,null,null,null,null,null,null,"",""]
[{"$f":"IF('Öğrenci Listesi'!A36=\"\",\"\",'Öğrenci Listesi'!A36)","v":35},{"$f":"IF('Öğrenci Listesi'!B36=\"\",\"\",'Öğrenci Listesi'!B36)","v":670},{"$f":"IF('Öğrenci Listesi'!C36=\"\",\"\",'Öğrenci Listesi'!C36)","v":"Züleyha Baş"},null,null,null,null,null,null,null,null,null,null,null,null,null,null,null,null,null,null,null,null,null,null,null,null,null,null,null,"",""]

{"sheet":"Görsel Sanatlar","index":4,"n_rows":37,"n_cols":40,"rows_kept":37,"cut":false,"hidden":false,"merged":[[0,0,0,39]]}
[{"$f":"UPPER(CONCATENATE('Öğrenci Listesi'!H3,\" İLKOKULU \",'Öğrenci Listesi'!H5,\" EĞİTİM ÖĞRETİM YILI \",'Öğrenci Listesi'!H4,\" SINIFI \",'Öğrenci Listesi'!H10,\" DERSİ \",'Öğrenci Listesi'!H6,\". DÖNEM KAZANIM DEĞERLENDİRME ÖLÇEĞİ\"))","v":"MEHMET AKİF ERSOY İLKOKULU 2022-2023 EĞİTİM ÖĞRETİM YILI 1-A SINIFI GÖRSEL SANATLAR DERSİ 1. DÖNEM KAZANIM DEĞERLENDİRME ÖLÇEĞİ"}]
["S.NO","OKUL NO",null,"Görsel sanat çalışmalarını oluştururken uygulama basamaklarını ifade eder.","Görsel sanat çalışmalarında farklı materyal, malzeme, gereç ve teknikleri kullanır.","Duygu ve düşüncelerini görsel sanat çalışmasına yansıtır","Görsel sanat çalışmalarını temalardan, konulardan, fikirlerden, şiirlerden, hikâyelerden esinlenerek oluşturur.","İki boyutlu yüzey üzerinde biçimleri düzenler.","Görsel sanat çalışmasında figür-mekân ilişkisini ifade eder.","Görsel sanat çalışmasında büyüklük-küçüklük ilişkilerini kullanır.","Çevresindeki objeleri ve figürleri gözlemleyerek çizimlerini yapar.","Üç boyutlu çalışma oluşturur.","Görsel sanat çalışmasını oluştururken sanat elemanlarını kullanır.","Sanatın, kültürün bir parçası olduğunu fark eder."," Müze, sanat galerisi, sanatçı atölyesi, ören yeri vb. ile ilgili izlenimlerini söyler.","Yapay objelerle doğal objeleri ayırt eder.","Sanat eserinin biçimsel özelliklerini söyler. ","Sanat eserleri arasındaki farklılıkları açıklar.","Görsel sanat çalışmalarını oluştururken uygulama basamaklarını ifade eder.",null,null,null,null,null,null,null,null,null,null,null,null,null,null,null,null,null,null,null,"ORTALAMA","SONUÇ"]
[{"$f":"IF('Öğrenci Listesi'!A2=\"\",\"\",'Öğrenci Listesi'!A2)","v":1},{"$f":"IF('Öğrenci Listesi'!B2=\"\",\"\",'Öğrenci Listesi'!B2)","v":3},{"$f":"IF('Öğrenci Listesi'!C2=\"\",\"\",'Öğrenci Listesi'!C2)","v":"Joud Akram Sadı Kallab"},null,null,null,null,null,null,null,null,null,null,null,null,null,null,null,null,null,null,null,null,null,null,null,null,null,null,null,null,null,null,null,null,null,null,null,{"$f":"IF(D3=\"\",\"\",AVERAGE(D3:AL3))","v":""},{"$f":"IF(D3=\"\",\"\",IF(AM3>2.49,\"ÇOKİYİ\",IF(AM3>1.49,\" İYİ\",IF(AM3>0,\"GELİŞTİRİLMELİ\"))))","v":""}]
[{"$f":"IF('Öğrenci Listesi'!A3=\"\",\"\",'Öğrenci Listesi'!A3)","v":2},{"$f":"IF('Öğrenci Listesi'!B3=\"\",\"\",'Öğrenci Listesi'!B3)","v":324},{"$f":"IF('Öğrenci Listesi'!C3=\"\",\"\",'Öğrenci Listesi'!C3)","v":"Ahmed Salih Bektaşoğlu"},null,null,null,null,null,null,null,null,null,null,null,null,null,null," ",null,null,null,null,null,null,null,null,null,null,null,null,null,null,null,null,null,null,null,null,{"$f":"IF(D4=\"\",\"\",AVERAGE(D4:AL4))","v":""},{"$f":"IF(D4=\"\",\"\",IF(AM4>2.49,\"ÇOKİYİ\",IF(AM4>1.49,\" İYİ\",IF(AM4>0,\"GELİŞTİRİLMELİ\"))))","v":""}]
[{"$f":"IF('Öğrenci Listesi'!A4=\"\",\"\",'Öğrenci Listesi'!A4)","v":3},{"$f":"IF('Öğrenci Listesi'!B4=\"\",\"\",'Öğrenci Listesi'!B4)","v":502},{"$f":"IF('Öğrenci Listesi'!C4=\"\",\"\",'Öğrenci Listesi'!C4)","v":"Mehmet Nail Sırma"},null,null,null,null,null,null,null,null,null,null,null,null,null,null,null,null,null,null,null,null,null,null,null,null,null,null,null,null,null,null,null,null,null,null,null,"",""]
[{"$f":"IF('Öğrenci Listesi'!A5=\"\",\"\",'Öğrenci Listesi'!A5)","v":4},{"$f":"IF('Öğrenci Listesi'!B5=\"\",\"\",'Öğrenci Listesi'!B5)","v":503},{"$f":"IF('Öğrenci Listesi'!C5=\"\",\"\",'Öğrenci Listesi'!C5)","v":"Yunus Emre Özen"},null,null,null,null,null,null,null,null,null,null,null,null,null,null,null,null,null,null,null,null,null,null,null,null,null,null,null,null,null,null,null,null,null,null,null,"",""]
[{"$f":"IF('Öğrenci Listesi'!A6=\"\",\"\",'Öğrenci Listesi'!A6)","v":5},{"$f":"IF('Öğrenci Listesi'!B6=\"\",\"\",'Öğrenci Listesi'!B6)","v":504},{"$f":"IF('Öğrenci Listesi'!C6=\"\",\"\",'Öğrenci Listesi'!C6)","v":"Ömer Asaf Aydın"},null,null,null,null,null,null,null,null,null,null,null,null,null,null,null,null,null,null,null,null,null,null,null,null,null,null,null,null,null,null,null,null,null,null,null,"",""]
[{"$f":"IF('Öğrenci Listesi'!A7=\"\",\"\",'Öğrenci Listesi'!A7)","v":6},{"$f":"IF('Öğrenci Listesi'!B7=\"\",\"\",'Öğrenci Listesi'!B7)","v":505},{"$f":"IF('Öğrenci Listesi'!C7=\"\",\"\",'Öğrenci Listesi'!C7)","v":"Emircan Balcı"},null,null,null,null,null,null,null,null,null,null,null,null,null,null,null,null,null,null,null,null,null,null,null,null,null,null,null,null,null,null,null,null,null,null,null,"",""]
[{"$f":"IF('Öğrenci Listesi'!A8=\"\",\"\",'Öğrenci Listesi'!A8)","v":7},{"$f":"IF('Öğrenci Listesi'!B8=\"\",\"\",'Öğrenci Listesi'!B8)","v":506},{"$f":"IF('Öğrenci Listesi'!C8=\"\",\"\",'Öğrenci Listesi'!C8)","v":"Çınar Hayri Dilber"},null,null,null,null,null,null,null,null,null,null,null,null,null,null,null,null,null,null,null,null,null,null,null,null,null,null,null,null,null,null,null,null,null,null,null,"",""]
[{"$f":"IF('Öğrenci Listesi'!A9=\"\",\"\",'Öğrenci Listesi'!A9)","v":8},{"$f":"IF('Öğrenci Listesi'!B9=\"\",\"\",'Öğrenci Listesi'!B9)","v":507},{"$f":"IF('Öğrenci Listesi'!C9=\"\",\"\",'Öğrenci Listesi'!C9)","v":"Ahmet Asaf Çil"},null,null,null,null,null,null,null,null,null,null,null,null,null,null,null,null,null,null,null,null,null,null,null,null,null,null,null,null,null,null,null,null,null,null,null,"",""]
[{"$f":"IF('Öğrenci Listesi'!A10=\"\",\"\",'Öğrenci Listesi'!A10)","v":9},{"$f":"IF('Öğrenci Listesi'!B10=\"\",\"\",'Öğrenci Listesi'!B10)","v":508},{"$f":"IF('Öğrenci Listesi'!C10=\"\",\"\",'Öğrenci Listesi'!C10)","v":"Yiğit Hamza Sarı"},null,null,null,null,null,null,null,null,null,null,null,null,null,null,null,null,null,null,null,null,null,null,null,null,null,null,null,null,null,null,null,null,null,null,null,"",""]
[{"$f":"IF('Öğrenci Listesi'!A11=\"\",\"\",'Öğrenci Listesi'!A11)","v":10},{"$f":"IF('Öğrenci Listesi'!B11=\"\",\"\",'Öğrenci Listesi'!B11)","v":509},{"$f":"IF('Öğrenci Listesi'!C11=\"\",\"\",'Öğrenci Listesi'!C11)","v":"Ahmet Yağız Birinci"},null,null,null,null,null,null,null,null,null,null,null,null,null,null,null,null,null,null,null,null,null,null,null,null,null,null,null,null,null,null,null,null,null,null,null,"",""]
[{"$f":"IF('Öğrenci Listesi'!A12=\"\",\"\",'Öğrenci Listesi'!A12)","v":11},{"$f":"IF('Öğrenci Listesi'!B12=\"\",\"\",'Öğrenci Listesi'!B12)","v":511},{"$f":"IF('Öğrenci Listesi'!C12=\"\",\"\",'Öğrenci Listesi'!C12)","v":"Eyüp Yıldırım"},null,null,null,null,null,null,null,null,null,null,null,null,null,null,null,null,null,null,null,null,null,null,null,null,null,null,null,null,null,null,null,null,null,null,null,"",""]
[{"$f":"IF('Öğrenci Listesi'!A13=\"\",\"\",'Öğrenci Listesi'!A13)","v":12},{"$f":"IF('Öğrenci Listesi'!B13=\"\",\"\",'Öğrenci Listesi'!B13)","v":512},{"$f":"IF('Öğrenci Listesi'!C13=\"\",\"\",'Öğrenci Listesi'!C13)","v":"Salih Emre Koç"},null,null,null,null,null,null,null,null,null,null,null,null,null,null,null,null,null,null,null,null,null,null,null,null,null,null,null,null,null,null,null,null,null,null,null,"",""]
[{"$f":"IF('Öğrenci Listesi'!A14=\"\",\"\",'Öğrenci Listesi'!A14)","v":13},{"$f":"IF('Öğrenci Listesi'!B14=\"\",\"\",'Öğrenci Listesi'!B14)","v":513},{"$f":"IF('Öğrenci Listesi'!C14=\"\",\"\",'Öğrenci Listesi'!C14)","v":"Recep Eymen Sarı"},null,null,null,null,null,null,null,null,null,null,null,null,null,null,null,null,null,null,null,null,null,null,null,null,null,null,null,null,null,null,null,null,null,null,null,"",""]
[{"$f":"IF('Öğrenci Listesi'!A15=\"\",\"\",'Öğrenci Listesi'!A15)","v":14},{"$f":"IF('Öğrenci Listesi'!B15=\"\",\"\",'Öğrenci Listesi'!B15)","v":514},{"$f":"IF('Öğrenci Listesi'!C15=\"\",\"\",'Öğrenci Listesi'!C15)","v":"Yiğitcan Düzenli"},null,null,null,null,null,null,null,null,null,null,null,null,null,null,null,null,null,null,null,null,null,null,null,null,null,null,null,null,null,null,null,null,null,null,null,"",""]
[{"$f":"IF('Öğrenci Listesi'!A16=\"\",\"\",'Öğrenci Listesi'!A16)","v":15},{"$f":"IF('Öğrenci Listesi'!B16=\"\",\"\",'Öğrenci Listesi'!B16)","v":515},{"$f":"IF('Öğrenci Listesi'!C16=\"\",\"\",'Öğrenci Listesi'!C16)","v":"Üveys Asaf Türkday"},null,null,null,null,null,null,null,null,null,null,null,null,null,null,null,null,null,null,null,null,null,null,null,null,null,null,null,null,null,null,null,null,null,null,null,"",""]
[{"$f":"IF('Öğrenci Listesi'!A17=\"\",\"\",'Öğrenci Listesi'!A17)","v":16},{"$f":"IF('Öğrenci Listesi'!B17=\"\",\"\",'Öğrenci Listesi'!B17)","v":516},{"$f":"IF('Öğrenci Listesi'!C17=\"\",\"\",'Öğrenci Listesi'!C17)","v":"Havvanur Kefelioğlu"},null,null,null,null,null,null,null,null,null,null,null,null,null,null,null,null,null,null,null,null,null,null,null,null,null,null,null,null,null,null,null,null,null,null,null,"",""]
[{"$f":"IF('Öğrenci Listesi'!A18=\"\",\"\",'Öğrenci Listesi'!A18)","v":17},{"$f":"IF('Öğrenci Listesi'!B18=\"\",\"\",'Öğrenci Listesi'!B18)","v":517},{"$f":"IF('Öğrenci Listesi'!C18=\"\",\"\",'Öğrenci Listesi'!C18)","v":"Yağmur Çil"},null,null,null,null,null,null,null,null,null,null,null,null,null,null,null,null,null,null,null,null,null,null,null,null,null,null,null,null,null,null,null,null,null,null,null,"",""]
[{"$f":"IF('Öğrenci Listesi'!A19=\"\",\"\",'Öğrenci Listesi'!A19)","v":18},{"$f":"IF('Öğrenci Listesi'!B19=\"\",\"\",'Öğrenci Listesi'!B19)","v":519},{"$f":"IF('Öğrenci Listesi'!C19=\"\",\"\",'Öğrenci Listesi'!C19)","v":"Elanur Çelikbilek"},null,null,null,null,null,null,null,null,null,null,null,null,null,null,null,null,null,null,null,null,null,null,null,null,null,null,null,null,null,null,null,null,null,null,null,"",""]
[{"$f":"IF('Öğrenci Listesi'!A20=\"\",\"\",'Öğrenci Listesi'!A20)","v":19},{"$f":"IF('Öğrenci Listesi'!B20=\"\",\"\",'Öğrenci Listesi'!B20)","v":520},{"$f":"IF('Öğrenci Listesi'!C20=\"\",\"\",'Öğrenci Listesi'!C20)","v":"Deniz Asaf Aydın"},null,null,null,null,null,null,null,null,null,null,null,null,null,null,null,null,null,null,null,null,null,null,null,null,null,null,null,null,null,null,null,null,null,null,null,"",""]
[{"$f":"IF('Öğrenci Listesi'!A21=\"\",\"\",'Öğrenci Listesi'!A21)","v":20},{"$f":"IF('Öğrenci Listesi'!B21=\"\",\"\",'Öğrenci Listesi'!B21)","v":522},{"$f":"IF('Öğrenci Listesi'!C21=\"\",\"\",'Öğrenci Listesi'!C21)","v":"Yiğit Eymen Büyükkol"},null,null,null,null,null,null,null,null,null,null,null,null,null,null,null,null,null,null,null,null,null,null,null,null,null,null,null,null,null,null,null,null,null,null,null,"",""]
[{"$f":"IF('Öğrenci Listesi'!A22=\"\",\"\",'Öğrenci Listesi'!A22)","v":21},{"$f":"IF('Öğrenci Listesi'!B22=\"\",\"\",'Öğrenci Listesi'!B22)","v":523},{"$f":"IF('Öğrenci Listesi'!C22=\"\",\"\",'Öğrenci Listesi'!C22)","v":"Yaren Su Şahin"},null,null,null,null,null,null,null,null,null,null,null,null,null,null,null,null,null,null,null,null,null,null,null,null,null,null,null,null,null,null,null,null,null,null,null,"",""]
[{"$f":"IF('Öğrenci Listesi'!A23=\"\",\"\",'Öğrenci Listesi'!A23)","v":22},{"$f":"IF('Öğrenci Listesi'!B23=\"\",\"\",'Öğrenci Listesi'!B23)","v":524},{"$f":"IF('Öğrenci Listesi'!C23=\"\",\"\",'Öğrenci Listesi'!C23)","v":"Nuran Ece Yalpur"},null,null,null,null,null,null,null,null,null,null,null,null,null,null,null,null,null,null,null,null,null,null,null,null,null,null,null,null,null,null,null,null,null,null,null,"",""]
[{"$f":"IF('Öğrenci Listesi'!A24=\"\",\"\",'Öğrenci Listesi'!A24)","v":23},{"$f":"IF('Öğrenci Listesi'!B24=\"\",\"\",'Öğrenci Listesi'!B24)","v":525},{"$f":"IF('Öğrenci Listesi'!C24=\"\",\"\",'Öğrenci Listesi'!C24)","v":"Elfin Figen Zeren"},null,null,null,null,null,null,null,null,null,null,null,null,null,null,null,null,null,null,null,null,null,null,null,null,null,null,null,null,null,null,null,null,null,null,null,"",""]
[{"$f":"IF('Öğrenci Listesi'!A25=\"\",\"\",'Öğrenci Listesi'!A25)","v":24},{"$f":"IF('Öğrenci Listesi'!B25=\"\",\"\",'Öğrenci Listesi'!B25)","v":526},{"$f":"IF('Öğrenci Listesi'!C25=\"\",\"\",'Öğrenci Listesi'!C25)","v":"Amine Yılmaz"},null,null,null,null,null,null,null,null,null,null,null,null,null,null,null,null,null,null,null,null,null,null,null,null,null,null,null,null,null,null,null,null,null,null,null,"",""]
[{"$f":"IF('Öğrenci Listesi'!A26=\"\",\"\",'Öğrenci Listesi'!A26)","v":25},{"$f":"IF('Öğrenci Listesi'!B26=\"\",\"\",'Öğrenci Listesi'!B26)","v":527},{"$f":"IF('Öğrenci Listesi'!C26=\"\",\"\",'Öğrenci Listesi'!C26)","v":"Berensu Taşkaya"},null,null,null,null,null,null,null,null,null,null,null,null,null,null,null,null,null,null,null,null,null,null,null,null,null,null,null,null,null,null,null,null,null,null,null,"",""]
[{"$f":"IF('Öğrenci Listesi'!A27=\"\",\"\",'Öğrenci Listesi'!A27)","v":26},{"$f":"IF('Öğrenci Listesi'!B27=\"\",\"\",'Öğrenci Listesi'!B27)","v":528},{"$f":"IF('Öğrenci Listesi'!C27=\"\",\"\",'Öğrenci Listesi'!C27)","v":"Yüsra Dilek"},null,null,null,null,null,null,null,null,null,null,null,null,null,null,null,null,null,null,null,null,null,null,null,null,null,null,null,null,null,null,null,null,null,null,null,"",""]
[{"$f":"IF('Öğrenci Listesi'!A28=\"\",\"\",'Öğrenci Listesi'!A28)","v":27},{"$f":"IF('Öğrenci Listesi'!B28=\"\",\"\",'Öğrenci Listesi'!B28)","v":529},{"$f":"IF('Öğrenci Listesi'!C28=\"\",\"\",'Öğrenci Listesi'!C28)","v":"Elif Acuner"},null,null,null,null,null,null,null,null,null,null,null,null,null,null,null,null,null,null,null,null,null,null,null,null,null,null,null,null,null,null,null,null,null,null,null,"",""]
[{"$f":"IF('Öğrenci Listesi'!A29=\"\",\"\",'Öğrenci Listesi'!A29)","v":28},{"$f":"IF('Öğrenci Listesi'!B29=\"\",\"\",'Öğrenci Listesi'!B29)","v":530},{"$f":"IF('Öğrenci Listesi'!C29=\"\",\"\",'Öğrenci Listesi'!C29)","v":"Ebrar Aydın"},null,null,null,null,null,null,null,null,null,null,null,null,null,null,null,null,null,null,null,null,null,null,null,null,null,null,null,null,null,null,null,null,null,null,null,"",""]
[{"$f":"IF('Öğrenci Listesi'!A30=\"\",\"\",'Öğrenci Listesi'!A30)","v":29},{"$f":"IF('Öğrenci Listesi'!B30=\"\",\"\",'Öğrenci Listesi'!B30)","v":531},{"$f":"IF('Öğrenci Listesi'!C30=\"\",\"\",'Öğrenci Listesi'!C30)","v":"Cansu Dayıoğlu"},null,null,null,null,null,null,null,null,null,null,null,null,null,null,null,null,null,null,null,null,null,null,null,null,null,null,null,null,null,null,null,null,null,null,null,"",""]
[{"$f":"IF('Öğrenci Listesi'!A31=\"\",\"\",'Öğrenci Listesi'!A31)","v":30},{"$f":"IF('Öğrenci Listesi'!B31=\"\",\"\",'Öğrenci Listesi'!B31)","v":532},{"$f":"IF('Öğrenci Listesi'!C31=\"\",\"\",'Öğrenci Listesi'!C31)","v":"Feyzanur Bilir"},null,null,null,null,null,null,null,null,null,null,null,null,null,null,null,null,null,null,null,null,null,null,null,null,null,null,null,null,null,null,null,null,null,null,null,"",""]
[{"$f":"IF('Öğrenci Listesi'!A32=\"\",\"\",'Öğrenci Listesi'!A32)","v":31},{"$f":"IF('Öğrenci Listesi'!B32=\"\",\"\",'Öğrenci Listesi'!B32)","v":533},{"$f":"IF('Öğrenci Listesi'!C32=\"\",\"\",'Öğrenci Listesi'!C32)","v":"Erva Akçay"},null,null,null,null,null,null,null,null,null,null,null,null,null,null,null,null,null,null,null,null,null,null,null,null,null,null,null,null,null,null,null,null,null,null,null,"",""]
[{"$f":"IF('Öğrenci Listesi'!A33=\"\",\"\",'Öğrenci Listesi'!A33)","v":32},{"$f":"IF('Öğrenci Listesi'!B33=\"\",\"\",'Öğrenci Listesi'!B33)","v":651},{"$f":"IF('Öğrenci Listesi'!C33=\"\",\"\",'Öğrenci Listesi'!C33)","v":"Ecrin Zümra Gönci"},null,null,null,null,null,null,null,null,null,null,null,null,null,null,null,null,null,null,null,null,null,null,null,null,null,null,null,null,null,null,null,null,null,null,null,"",""]
[{"$f":"IF('Öğrenci Listesi'!A34=\"\",\"\",'Öğrenci Listesi'!A34)","v":33},{"$f":"IF('Öğrenci Listesi'!B34=\"\",\"\",'Öğrenci Listesi'!B34)","v":659},{"$f":"IF('Öğrenci Listesi'!C34=\"\",\"\",'Öğrenci Listesi'!C34)","v":"Zeynep Sare Koç"},null,null,null,null,null,null,null,null,null,null,null,null,null,null,null,null,null,null,null,null,null,null,null,null,null,null,null,null,null,null,null,null,null,null,null,"",""]
[{"$f":"IF('Öğrenci Listesi'!A35=\"\",\"\",'Öğrenci Listesi'!A35)","v":34},{"$f":"IF('Öğrenci Listesi'!B35=\"\",\"\",'Öğrenci Listesi'!B35)","v":663},{"$f":"IF('Öğrenci Listesi'!C35=\"\",\"\",'Öğrenci Listesi'!C35)","v":"Asel Berra Çalışkan"},null,null,null,null,null,null,null,null,null,null,null,null,null,null,null,null,null,null,null,null,null,null,null,null,null,null,null,null,null,null,null,null,null,null,null,"",""]
[{"$f":"IF('Öğrenci Listesi'!A36=\"\",\"\",'Öğrenci Listesi'!A36)","v":35},{"$f":"IF('Öğrenci Listesi'!B36=\"\",\"\",'Öğrenci Listesi'!B36)","v":670},{"$f":"IF('Öğrenci Listesi'!C36=\"\",\"\",'Öğrenci Listesi'!C36)","v":"Züleyha Baş"},null,null,null,null,null,null,null,null,null,null,null,null,null,null,null,null,null,null,null,null,null,null,null,null,null,null,null,null,null,null,null,null,null,null,null,"",""]

{"sheet":"Müzik","index":5,"n_rows":37,"n_cols":40,"rows_kept":37,"cut":false,"hidden":false,"merged":[[0,0,0,39]]}
[{"$f":"UPPER(CONCATENATE('Öğrenci Listesi'!H3,\" İLKOKULU \",'Öğrenci Listesi'!H5,\" EĞİTİM ÖĞRETİM YILI \",'Öğrenci Listesi'!H4,\" SINIFI \",'Öğrenci Listesi'!H11,\" DERSİ \",'Öğrenci Listesi'!H6,\". DÖNEM KAZANIM DEĞERLENDİRME ÖLÇEĞİ\"))","v":"MEHMET AKİF ERSOY İLKOKULU 2022-2023 EĞİTİM ÖĞRETİM YILI 1-A SINIFI MÜZİK DERSİ 1. DÖNEM KAZANIM DEĞERLENDİRME ÖLÇEĞİ"}]
["S.NO","OKUL NO",null,"İstiklâl Marşı’nı saygıyla dinler.","İstiklâl Marşı’na saygı gösterir.","Ses ve nefes çalışmaları yapar","Vücudunu ritim çalgısı gibi kullanır.","Belirli gün ve haftalarla ilgili müzik etkinliklerine katılır.","Ses ve nefes çalışmaları yapar","Çevresinde duyduğu sesleri taklit eder.","Çevresindeki ses kaynaklarını ayırt eder.","Düzenli ve düzensiz sesleri birbirinden ayırt eder.","Müzik çalışmalarını gerçekleştirdiği ortamı tanır.","Çevresindeki varlıkları hareket hızlarıyla ayırt eder.","Müziklere uygun hızda hareket eder.","Oluşturduğu ritim çalgısıyla öğrendiği müziklere eşlik eder.",null,null,null,null,null,null,null,null,null,null,null,null,null,null,null,null,null,null,null,null,null,null,"ORTALAMA","SONUÇ"]
[{"$f":"IF('Öğrenci Listesi'!A2=\"\",\"\",'Öğrenci Listesi'!A2)","v":1},{"$f":"IF('Öğrenci Listesi'!B2=\"\",\"\",'Öğrenci Listesi'!B2)","v":3},{"$f":"IF('Öğrenci Listesi'!C2=\"\",\"\",'Öğrenci Listesi'!C2)","v":"Joud Akram Sadı Kallab"},null,null,null,null,null,null,null,null,null,null,null,null,null,null,null,null,null,null,null,null,null,null,null,null,null,null,null,null,null,null,null,null,null,null,null,{"$f":"IF(D3=\"\",\"\",AVERAGE(D3:AL3))","v":""},{"$f":"IF(D3=\"\",\"\",IF(AM3>2.49,\"ÇOKİYİ\",IF(AM3>1.49,\" İYİ\",IF(AM3>0,\"GELİŞTİRİLMELİ\"))))","v":""}]
[{"$f":"IF('Öğrenci Listesi'!A3=\"\",\"\",'Öğrenci Listesi'!A3)","v":2},{"$f":"IF('Öğrenci Listesi'!B3=\"\",\"\",'Öğrenci Listesi'!B3)","v":324},{"$f":"IF('Öğrenci Listesi'!C3=\"\",\"\",'Öğrenci Listesi'!C3)","v":"Ahmed Salih Bektaşoğlu"},null,null,null,null,null,null,null,null,null,null,null,null,null,null," ",null,null,null,null,null,null,null,null,null,null,null,null,null,null,null,null,null,null,null,null,{"$f":"IF(D4=\"\",\"\",AVERAGE(D4:AL4))","v":""},{"$f":"IF(D4=\"\",\"\",IF(AM4>2.49,\"ÇOKİYİ\",IF(AM4>1.49,\" İYİ\",IF(AM4>0,\"GELİŞTİRİLMELİ\"))))","v":""}]
[{"$f":"IF('Öğrenci Listesi'!A4=\"\",\"\",'Öğrenci Listesi'!A4)","v":3},{"$f":"IF('Öğrenci Listesi'!B4=\"\",\"\",'Öğrenci Listesi'!B4)","v":502},{"$f":"IF('Öğrenci Listesi'!C4=\"\",\"\",'Öğrenci Listesi'!C4)","v":"Mehmet Nail Sırma"},null,null,null,null,null,null,null,null,null,null,null,null,null,null,null,null,null,null,null,null,null,null,null,null,null,null,null,null,null,null,null,null,null,null,null,"",""]
[{"$f":"IF('Öğrenci Listesi'!A5=\"\",\"\",'Öğrenci Listesi'!A5)","v":4},{"$f":"IF('Öğrenci Listesi'!B5=\"\",\"\",'Öğrenci Listesi'!B5)","v":503},{"$f":"IF('Öğrenci Listesi'!C5=\"\",\"\",'Öğrenci Listesi'!C5)","v":"Yunus Emre Özen"},null,null,null,null,null,null,null,null,null,null,null,null,null,null,null,null,null,null,null,null,null,null,null,null,null,null,null,null,null,null,null,null,null,null,null,"",""]
[{"$f":"IF('Öğrenci Listesi'!A6=\"\",\"\",'Öğrenci Listesi'!A6)","v":5},{"$f":"IF('Öğrenci Listesi'!B6=\"\",\"\",'Öğrenci Listesi'!B6)","v":504},{"$f":"IF('Öğrenci Listesi'!C6=\"\",\"\",'Öğrenci Listesi'!C6)","v":"Ömer Asaf Aydın"},null,null,null,null,null,null,null,null,null,null,null,null,null,null,null,null,null,null,null,null,null,null,null,null,null,null,null,null,null,null,null,null,null,null,null,"",""]
[{"$f":"IF('Öğrenci Listesi'!A7=\"\",\"\",'Öğrenci Listesi'!A7)","v":6},{"$f":"IF('Öğrenci Listesi'!B7=\"\",\"\",'Öğrenci Listesi'!B7)","v":505},{"$f":"IF('Öğrenci Listesi'!C7=\"\",\"\",'Öğrenci Listesi'!C7)","v":"Emircan Balcı"},null,null,null,null,null,null,null,null,null,null,null,null,null,null,null,null,null,null,null,null,null,null,null,null,null,null,null,null,null,null,null,null,null,null,null,"",""]
[{"$f":"IF('Öğrenci Listesi'!A8=\"\",\"\",'Öğrenci Listesi'!A8)","v":7},{"$f":"IF('Öğrenci Listesi'!B8=\"\",\"\",'Öğrenci Listesi'!B8)","v":506},{"$f":"IF('Öğrenci Listesi'!C8=\"\",\"\",'Öğrenci Listesi'!C8)","v":"Çınar Hayri Dilber"},null,null,null,null,null,null,null,null,null,null,null,null,null,null,null,null,null,null,null,null,null,null,null,null,null,null,null,null,null,null,null,null,null,null,null,"",""]
[{"$f":"IF('Öğrenci Listesi'!A9=\"\",\"\",'Öğrenci Listesi'!A9)","v":8},{"$f":"IF('Öğrenci Listesi'!B9=\"\",\"\",'Öğrenci Listesi'!B9)","v":507},{"$f":"IF('Öğrenci Listesi'!C9=\"\",\"\",'Öğrenci Listesi'!C9)","v":"Ahmet Asaf Çil"},null,null,null,null,null,null,null,null,null,null,null,null,null,null,null,null,null,null,null,null,null,null,null,null,null,null,null,null,null,null,null,null,null,null,null,"",""]
[{"$f":"IF('Öğrenci Listesi'!A10=\"\",\"\",'Öğrenci Listesi'!A10)","v":9},{"$f":"IF('Öğrenci Listesi'!B10=\"\",\"\",'Öğrenci Listesi'!B10)","v":508},{"$f":"IF('Öğrenci Listesi'!C10=\"\",\"\",'Öğrenci Listesi'!C10)","v":"Yiğit Hamza Sarı"},null,null,null,null,null,null,null,null,null,null,null,null,null,null,null,null,null,null,null,null,null,null,null,null,null,null,null,null,null,null,null,null,null,null,null,"",""]
[{"$f":"IF('Öğrenci Listesi'!A11=\"\",\"\",'Öğrenci Listesi'!A11)","v":10},{"$f":"IF('Öğrenci Listesi'!B11=\"\",\"\",'Öğrenci Listesi'!B11)","v":509},{"$f":"IF('Öğrenci Listesi'!C11=\"\",\"\",'Öğrenci Listesi'!C11)","v":"Ahmet Yağız Birinci"},null,null,null,null,null,null,null,null,null,null,null,null,null,null,null,null,null,null,null,null,null,null,null,null,null,null,null,null,null,null,null,null,null,null,null,"",""]
[{"$f":"IF('Öğrenci Listesi'!A12=\"\",\"\",'Öğrenci Listesi'!A12)","v":11},{"$f":"IF('Öğrenci Listesi'!B12=\"\",\"\",'Öğrenci Listesi'!B12)","v":511},{"$f":"IF('Öğrenci Listesi'!C12=\"\",\"\",'Öğrenci Listesi'!C12)","v":"Eyüp Yıldırım"},null,null,null,null,null,null,null,null,null,null,null,null,null,null,null,null,null,null,null,null,null,null,null,null,null,null,null,null,null,null,null,null,null,null,null,"",""]
[{"$f":"IF('Öğrenci Listesi'!A13=\"\",\"\",'Öğrenci Listesi'!A13)","v":12},{"$f":"IF('Öğrenci Listesi'!B13=\"\",\"\",'Öğrenci Listesi'!B13)","v":512},{"$f":"IF('Öğrenci Listesi'!C13=\"\",\"\",'Öğrenci Listesi'!C13)","v":"Salih Emre Koç"},null,null,null,null,null,null,null,null,null,null,null,null,null,null,null,null,null,null,null,null,null,null,null,null,null,null,null,null,null,null,null,null,null,null,null,"",""]
[{"$f":"IF('Öğrenci Listesi'!A14=\"\",\"\",'Öğrenci Listesi'!A14)","v":13},{"$f":"IF('Öğrenci Listesi'!B14=\"\",\"\",'Öğrenci Listesi'!B14)","v":513},{"$f":"IF('Öğrenci Listesi'!C14=\"\",\"\",'Öğrenci Listesi'!C14)","v":"Recep Eymen Sarı"},null,null,null,null,null,null,null,null,null,null,null,null,null,null,null,null,null,null,null,null,null,null,null,null,null,null,null,null,null,null,null,null,null,null,null,"",""]
[{"$f":"IF('Öğrenci Listesi'!A15=\"\",\"\",'Öğrenci Listesi'!A15)","v":14},{"$f":"IF('Öğrenci Listesi'!B15=\"\",\"\",'Öğrenci Listesi'!B15)","v":514},{"$f":"IF('Öğrenci Listesi'!C15=\"\",\"\",'Öğrenci Listesi'!C15)","v":"Yiğitcan Düzenli"},null,null,null,null,null,null,null,null,null,null,null,null,null,null,null,null,null,null,null,null,null,null,null,null,null,null,null,null,null,null,null,null,null,null,null,"",""]
[{"$f":"IF('Öğrenci Listesi'!A16=\"\",\"\",'Öğrenci Listesi'!A16)","v":15},{"$f":"IF('Öğrenci Listesi'!B16=\"\",\"\",'Öğrenci Listesi'!B16)","v":515},{"$f":"IF('Öğrenci Listesi'!C16=\"\",\"\",'Öğrenci Listesi'!C16)","v":"Üveys Asaf Türkday"},null,null,null,null,null,null,null,null,null,null,null,null,null,null,null,null,null,null,null,null,null,null,null,null,null,null,null,null,null,null,null,null,null,null,null,"",""]
[{"$f":"IF('Öğrenci Listesi'!A17=\"\",\"\",'Öğrenci Listesi'!A17)","v":16},{"$f":"IF('Öğrenci Listesi'!B17=\"\",\"\",'Öğrenci Listesi'!B17)","v":516},{"$f":"IF('Öğrenci Listesi'!C17=\"\",\"\",'Öğrenci Listesi'!C17)","v":"Havvanur Kefelioğlu"},null,null,null,null,null,null,null,null,null,null,null,null,null,null,null,null,null,null,null,null,null,null,null,null,null,null,null,null,null,null,null,null,null,null,null,"",""]
[{"$f":"IF('Öğrenci Listesi'!A18=\"\",\"\",'Öğrenci Listesi'!A18)","v":17},{"$f":"IF('Öğrenci Listesi'!B18=\"\",\"\",'Öğrenci Listesi'!B18)","v":517},{"$f":"IF('Öğrenci Listesi'!C18=\"\",\"\",'Öğrenci Listesi'!C18)","v":"Yağmur Çil"},null,null,null,null,null,null,null,null,null,null,null,null,null,null,null,null,null,null,null,null,null,null,null,null,null,null,null,null,null,null,null,null,null,null,null,"",""]
[{"$f":"IF('Öğrenci Listesi'!A19=\"\",\"\",'Öğrenci Listesi'!A19)","v":18},{"$f":"IF('Öğrenci Listesi'!B19=\"\",\"\",'Öğrenci Listesi'!B19)","v":519},{"$f":"IF('Öğrenci Listesi'!C19=\"\",\"\",'Öğrenci Listesi'!C19)","v":"Elanur Çelikbilek"},null,null,null,null,null,null,null,null,null,null,null,null,null,null,null,null,null,null,null,null,null,null,null,null,null,null,null,null,null,null,null,null,null,null,null,"",""]
[{"$f":"IF('Öğrenci Listesi'!A20=\"\",\"\",'Öğrenci Listesi'!A20)","v":19},{"$f":"IF('Öğrenci Listesi'!B20=\"\",\"\",'Öğrenci Listesi'!B20)","v":520},{"$f":"IF('Öğrenci Listesi'!C20=\"\",\"\",'Öğrenci Listesi'!C20)","v":"Deniz Asaf Aydın"},null,null,null,null,null,null,null,null,null,null,null,null,null,null,null,null,null,null,null,null,null,null,null,null,null,null,null,null,null,null,null,null,null,null,null,"",""]
[{"$f":"IF('Öğrenci Listesi'!A21=\"\",\"\",'Öğrenci Listesi'!A21)","v":20},{"$f":"IF('Öğrenci Listesi'!B21=\"\",\"\",'Öğrenci Listesi'!B21)","v":522},{"$f":"IF('Öğrenci Listesi'!C21=\"\",\"\",'Öğrenci Listesi'!C21)","v":"Yiğit Eymen Büyükkol"},null,null,null,null,null,null,null,null,null,null,null,null,null,null,null,null,null,null,null,null,null,null,null,null,null,null,null,null,null,null,null,null,null,null,null,"",""]
[{"$f":"IF('Öğrenci Listesi'!A22=\"\",\"\",'Öğrenci Listesi'!A22)","v":21},{"$f":"IF('Öğrenci Listesi'!B22=\"\",\"\",'Öğrenci Listesi'!B22)","v":523},{"$f":"IF('Öğrenci Listesi'!C22=\"\",\"\",'Öğrenci Listesi'!C22)","v":"Yaren Su Şahin"},null,null,null,null,null,null,null,null,null,null,null,null,null,null,null,null,null,null,null,null,null,null,null,null,null,null,null,null,null,null,null,null,null,null,null,"",""]
[{"$f":"IF('Öğrenci Listesi'!A23=\"\",\"\",'Öğrenci Listesi'!A23)","v":22},{"$f":"IF('Öğrenci Listesi'!B23=\"\",\"\",'Öğrenci Listesi'!B23)","v":524},{"$f":"IF('Öğrenci Listesi'!C23=\"\",\"\",'Öğrenci Listesi'!C23)","v":"Nuran Ece Yalpur"},null,null,null,null,null,null,null,null,null,null,null,null,null,null,null,null,null,null,null,null,null,null,null,null,null,null,null,null,null,null,null,null,null,null,null,"",""]
[{"$f":"IF('Öğrenci Listesi'!A24=\"\",\"\",'Öğrenci Listesi'!A24)","v":23},{"$f":"IF('Öğrenci Listesi'!B24=\"\",\"\",'Öğrenci Listesi'!B24)","v":525},{"$f":"IF('Öğrenci Listesi'!C24=\"\",\"\",'Öğrenci Listesi'!C24)","v":"Elfin Figen Zeren"},null,null,null,null,null,null,null,null,null,null,null,null,null,null,null,null,null,null,null,null,null,null,null,null,null,null,null,null,null,null,null,null,null,null,null,"",""]
[{"$f":"IF('Öğrenci Listesi'!A25=\"\",\"\",'Öğrenci Listesi'!A25)","v":24},{"$f":"IF('Öğrenci Listesi'!B25=\"\",\"\",'Öğrenci Listesi'!B25)","v":526},{"$f":"IF('Öğrenci Listesi'!C25=\"\",\"\",'Öğrenci Listesi'!C25)","v":"Amine Yılmaz"},null,null,null,null,null,null,null,null,null,null,null,null,null,null,null,null,null,null,null,null,null,null,null,null,null,null,null,null,null,null,null,null,null,null,null,"",""]
[{"$f":"IF('Öğrenci Listesi'!A26=\"\",\"\",'Öğrenci Listesi'!A26)","v":25},{"$f":"IF('Öğrenci Listesi'!B26=\"\",\"\",'Öğrenci Listesi'!B26)","v":527},{"$f":"IF('Öğrenci Listesi'!C26=\"\",\"\",'Öğrenci Listesi'!C26)","v":"Berensu Taşkaya"},null,null,null,null,null,null,null,null,null,null,null,null,null,null,null,null,null,null,null,null,null,null,null,null,null,null,null,null,null,null,null,null,null,null,null,"",""]
[{"$f":"IF('Öğrenci Listesi'!A27=\"\",\"\",'Öğrenci Listesi'!A27)","v":26},{"$f":"IF('Öğrenci Listesi'!B27=\"\",\"\",'Öğrenci Listesi'!B27)","v":528},{"$f":"IF('Öğrenci Listesi'!C27=\"\",\"\",'Öğrenci Listesi'!C27)","v":"Yüsra Dilek"},null,null,null,null,null,null,null,null,null,null,null,null,null,null,null,null,null,null,null,null,null,null,null,null,null,null,null,null,null,null,null,null,null,null,null,"",""]
[{"$f":"IF('Öğrenci Listesi'!A28=\"\",\"\",'Öğrenci Listesi'!A28)","v":27},{"$f":"IF('Öğrenci Listesi'!B28=\"\",\"\",'Öğrenci Listesi'!B28)","v":529},{"$f":"IF('Öğrenci Listesi'!C28=\"\",\"\",'Öğrenci Listesi'!C28)","v":"Elif Acuner"},null,null,null,null,null,null,null,null,null,null,null,null,null,null,null,null,null,null,null,null,null,null,null,null,null,null,null,null,null,null,null,null,null,null,null,"",""]
[{"$f":"IF('Öğrenci Listesi'!A29=\"\",\"\",'Öğrenci Listesi'!A29)","v":28},{"$f":"IF('Öğrenci Listesi'!B29=\"\",\"\",'Öğrenci Listesi'!B29)","v":530},{"$f":"IF('Öğrenci Listesi'!C29=\"\",\"\",'Öğrenci Listesi'!C29)","v":"Ebrar Aydın"},null,null,null,null,null,null,null,null,null,null,null,null,null,null,null,null,null,null,null,null,null,null,null,null,null,null,null,null,null,null,null,null,null,null,null,"",""]
[{"$f":"IF('Öğrenci Listesi'!A30=\"\",\"\",'Öğrenci Listesi'!A30)","v":29},{"$f":"IF('Öğrenci Listesi'!B30=\"\",\"\",'Öğrenci Listesi'!B30)","v":531},{"$f":"IF('Öğrenci Listesi'!C30=\"\",\"\",'Öğrenci Listesi'!C30)","v":"Cansu Dayıoğlu"},null,null,null,null,null,null,null,null,null,null,null,null,null,null,null,null,null,null,null,null,null,null,null,null,null,null,null,null,null,null,null,null,null,null,null,"",""]
[{"$f":"IF('Öğrenci Listesi'!A31=\"\",\"\",'Öğrenci Listesi'!A31)","v":30},{"$f":"IF('Öğrenci Listesi'!B31=\"\",\"\",'Öğrenci Listesi'!B31)","v":532},{"$f":"IF('Öğrenci Listesi'!C31=\"\",\"\",'Öğrenci Listesi'!C31)","v":"Feyzanur Bilir"},null,null,null,null,null,null,null,null,null,null,null,null,null,null,null,null,null,null,null,null,null,null,null,null,null,null,null,null,null,null,null,null,null,null,null,"",""]
[{"$f":"IF('Öğrenci Listesi'!A32=\"\",\"\",'Öğrenci Listesi'!A32)","v":31},{"$f":"IF('Öğrenci Listesi'!B32=\"\",\"\",'Öğrenci Listesi'!B32)","v":533},{"$f":"IF('Öğrenci Listesi'!C32=\"\",\"\",'Öğrenci Listesi'!C32)","v":"Erva Akçay"},null,null,null,null,null,null,null,null,null,null,null,null,null,null,null,null,null,null,null,null,null,null,null,null,null,null,null,null,null,null,null,null,null,null,null,"",""]
[{"$f":"IF('Öğrenci Listesi'!A33=\"\",\"\",'Öğrenci Listesi'!A33)","v":32},{"$f":"IF('Öğrenci Listesi'!B33=\"\",\"\",'Öğrenci Listesi'!B33)","v":651},{"$f":"IF('Öğrenci Listesi'!C33=\"\",\"\",'Öğrenci Listesi'!C33)","v":"Ecrin Zümra Gönci"},null,null,null,null,null,null,null,null,null,null,null,null,null,null,null,null,null,null,null,null,null,null,null,null,null,null,null,null,null,null,null,null,null,null,null,"",""]
[{"$f":"IF('Öğrenci Listesi'!A34=\"\",\"\",'Öğrenci Listesi'!A34)","v":33},{"$f":"IF('Öğrenci Listesi'!B34=\"\",\"\",'Öğrenci Listesi'!B34)","v":659},{"$f":"IF('Öğrenci Listesi'!C34=\"\",\"\",'Öğrenci Listesi'!C34)","v":"Zeynep Sare Koç"},null,null,null,null,null,null,null,null,null,null,null,null,null,null,null,null,null,null,null,null,null,null,null,null,null,null,null,null,null,null,null,null,null,null,null,"",""]
[{"$f":"IF('Öğrenci Listesi'!A35=\"\",\"\",'Öğrenci Listesi'!A35)","v":34},{"$f":"IF('Öğrenci Listesi'!B35=\"\",\"\",'Öğrenci Listesi'!B35)","v":663},{"$f":"IF('Öğrenci Listesi'!C35=\"\",\"\",'Öğrenci Listesi'!C35)","v":"Asel Berra Çalışkan"},null,null,null,null,null,null,null,null,null,null,null,null,null,null,null,null,null,null,null,null,null,null,null,null,null,null,null,null,null,null,null,null,null,null,null,"",""]
[{"$f":"IF('Öğrenci Listesi'!A36=\"\",\"\",'Öğrenci Listesi'!A36)","v":35},{"$f":"IF('Öğrenci Listesi'!B36=\"\",\"\",'Öğrenci Listesi'!B36)","v":670},{"$f":"IF('Öğrenci Listesi'!C36=\"\",\"\",'Öğrenci Listesi'!C36)","v":"Züleyha Baş"},null,null,null,null,null,null,null,null,null,null,null,null,null,null,null,null,null,null,null,null,null,null,null,null,null,null,null,null,null,null,null,null,null,null,null,"",""]

{"sheet":"Beden Eğitimi","index":6,"n_rows":37,"n_cols":40,"rows_kept":37,"cut":false,"hidden":false,"merged":[[0,0,0,39]]}
[{"$f":"UPPER(CONCATENATE('Öğrenci Listesi'!H3,\" İLKOKULU \",'Öğrenci Listesi'!H5,\" EĞİTİM ÖĞRETİM YILI \",'Öğrenci Listesi'!H4,\" SINIFI \",'Öğrenci Listesi'!H12,\" DERSİ \",'Öğrenci Listesi'!H6,\". DÖNEM KAZANIM DEĞERLENDİRME ÖLÇEĞİ\"))","v":"MEHMET AKİF ERSOY İLKOKULU 2022-2023 EĞİTİM ÖĞRETİM YILI 1-A SINIFI BEDEN EĞİTİMİ DERSİ 1. DÖNEM KAZANIM DEĞERLENDİRME ÖLÇEĞİ"}]
["S.NO","OKUL NO",null,"Yer değiştirme hareketlerini yapar.","Dengeleme hareketlerini yapar.","Bayram, kutlama ve törenlere katılır.","Nesne kontrolü gerektiren hareketleri yapar.","İki ve daha fazla hareket becerisini içeren basit kurallı oyunlar oynar.","İki ve daha fazla hareket becerisini içeren basit kurallı oyunlar oynar. ","Ritim ve müzik eşliğinde hareket eder. ","Vücut bölümlerinin hareketlerini tanımlar. ","Kişisel ve genel alanını fark eder. ","Verilen bir dizi hareketi, temel hareket beceri gruplarından uygun olanla ilişkilendirir. ","Oyunu belirlenen kurallara göre oynar. ","Temel hareketleri yaparken dengesini sağlamak için stratejiler geliştirir.","Oyunda kullanılan basit stratejileri tanımlar.",null,null,null,null,null,null,null,null,null,null,null,null,null,null,null,null,null,null,null,null,null,null,"ORTALAMA","SONUÇ"]
[{"$f":"IF('Öğrenci Listesi'!A2=\"\",\"\",'Öğrenci Listesi'!A2)","v":1},{"$f":"IF('Öğrenci Listesi'!B2=\"\",\"\",'Öğrenci Listesi'!B2)","v":3},{"$f":"IF('Öğrenci Listesi'!C2=\"\",\"\",'Öğrenci Listesi'!C2)","v":"Joud Akram Sadı Kallab"},null,null,null,null,null,null,null,null,null,null,null,null,null,null,null,null,null,null,null,null,null,null,null,null,null,null,null,null,null,null,null,null,null,null,null,{"$f":"IF(D3=\"\",\"\",AVERAGE(D3:AL3))","v":""},{"$f":"IF(D3=\"\",\"\",IF(AM3>2.49,\"ÇOKİYİ\",IF(AM3>1.49,\" İYİ\",IF(AM3>0,\"GELİŞTİRİLMELİ\"))))","v":""}]
[{"$f":"IF('Öğrenci Listesi'!A3=\"\",\"\",'Öğrenci Listesi'!A3)","v":2},{"$f":"IF('Öğrenci Listesi'!B3=\"\",\"\",'Öğrenci Listesi'!B3)","v":324},{"$f":"IF('Öğrenci Listesi'!C3=\"\",\"\",'Öğrenci Listesi'!C3)","v":"Ahmed Salih Bektaşoğlu"},null,null,null,null,null,null,null,null,null,null,null,null,null,null," ",null,null,null,null,null,null,null,null,null,null,null,null,null,null,null,null,null,null,null,null,{"$f":"IF(D4=\"\",\"\",AVERAGE(D4:AL4))","v":""},{"$f":"IF(D4=\"\",\"\",IF(AM4>2.49,\"ÇOKİYİ\",IF(AM4>1.49,\" İYİ\",IF(AM4>0,\"GELİŞTİRİLMELİ\"))))","v":""}]
[{"$f":"IF('Öğrenci Listesi'!A4=\"\",\"\",'Öğrenci Listesi'!A4)","v":3},{"$f":"IF('Öğrenci Listesi'!B4=\"\",\"\",'Öğrenci Listesi'!B4)","v":502},{"$f":"IF('Öğrenci Listesi'!C4=\"\",\"\",'Öğrenci Listesi'!C4)","v":"Mehmet Nail Sırma"},null,null,null,null,null,null,null,null,null,null,null,null,null,null,null,null,null,null,null,null,null,null,null,null,null,null,null,null,null,null,null,null,null,null,null,"",""]
[{"$f":"IF('Öğrenci Listesi'!A5=\"\",\"\",'Öğrenci Listesi'!A5)","v":4},{"$f":"IF('Öğrenci Listesi'!B5=\"\",\"\",'Öğrenci Listesi'!B5)","v":503},{"$f":"IF('Öğrenci Listesi'!C5=\"\",\"\",'Öğrenci Listesi'!C5)","v":"Yunus Emre Özen"},null,null,null,null,null,null,null,null,null,null,null,null,null,null,null,null,null,null,null,null,null,null,null,null,null,null,null,null,null,null,null,null,null,null,null,"",""]
[{"$f":"IF('Öğrenci Listesi'!A6=\"\",\"\",'Öğrenci Listesi'!A6)","v":5},{"$f":"IF('Öğrenci Listesi'!B6=\"\",\"\",'Öğrenci Listesi'!B6)","v":504},{"$f":"IF('Öğrenci Listesi'!C6=\"\",\"\",'Öğrenci Listesi'!C6)","v":"Ömer Asaf Aydın"},null,null,null,null,null,null,null,null,null,null,null,null,null,null,null,null,null,null,null,null,null,null,null,null,null,null,null,null,null,null,null,null,null,null,null,"",""]
[{"$f":"IF('Öğrenci Listesi'!A7=\"\",\"\",'Öğrenci Listesi'!A7)","v":6},{"$f":"IF('Öğrenci Listesi'!B7=\"\",\"\",'Öğrenci Listesi'!B7)","v":505},{"$f":"IF('Öğrenci Listesi'!C7=\"\",\"\",'Öğrenci Listesi'!C7)","v":"Emircan Balcı"},null,null,null,null,null,null,null,null,null,null,null,null,null,null,null,null,null,null,null,null,null,null,null,null,null,null,null,null,null,null,null,null,null,null,null,"",""]
[{"$f":"IF('Öğrenci Listesi'!A8=\"\",\"\",'Öğrenci Listesi'!A8)","v":7},{"$f":"IF('Öğrenci Listesi'!B8=\"\",\"\",'Öğrenci Listesi'!B8)","v":506},{"$f":"IF('Öğrenci Listesi'!C8=\"\",\"\",'Öğrenci Listesi'!C8)","v":"Çınar Hayri Dilber"},null,null,null,null,null,null,null,null,null,null,null,null,null,null,null,null,null,null,null,null,null,null,null,null,null,null,null,null,null,null,null,null,null,null,null,"",""]
[{"$f":"IF('Öğrenci Listesi'!A9=\"\",\"\",'Öğrenci Listesi'!A9)","v":8},{"$f":"IF('Öğrenci Listesi'!B9=\"\",\"\",'Öğrenci Listesi'!B9)","v":507},{"$f":"IF('Öğrenci Listesi'!C9=\"\",\"\",'Öğrenci Listesi'!C9)","v":"Ahmet Asaf Çil"},null,null,null,null,null,null,null,null,null,null,null,null,null,null,null,null,null,null,null,null,null,null,null,null,null,null,null,null,null,null,null,null,null,null,null,"",""]
[{"$f":"IF('Öğrenci Listesi'!A10=\"\",\"\",'Öğrenci Listesi'!A10)","v":9},{"$f":"IF('Öğrenci Listesi'!B10=\"\",\"\",'Öğrenci Listesi'!B10)","v":508},{"$f":"IF('Öğrenci Listesi'!C10=\"\",\"\",'Öğrenci Listesi'!C10)","v":"Yiğit Hamza Sarı"},null,null,null,null,null,null,null,null,null,null,null,null,null,null,null,null,null,null,null,null,null,null,null,null,null,null,null,null,null,null,null,null,null,null,null,"",""]
[{"$f":"IF('Öğrenci Listesi'!A11=\"\",\"\",'Öğrenci Listesi'!A11)","v":10},{"$f":"IF('Öğrenci Listesi'!B11=\"\",\"\",'Öğrenci Listesi'!B11)","v":509},{"$f":"IF('Öğrenci Listesi'!C11=\"\",\"\",'Öğrenci Listesi'!C11)","v":"Ahmet Yağız Birinci"},null,null,null,null,null,null,null,null,null,null,null,null,null,null,null,null,null,null,null,null,null,null,null,null,null,null,null,null,null,null,null,null,null,null,null,"",""]
[{"$f":"IF('Öğrenci Listesi'!A12=\"\",\"\",'Öğrenci Listesi'!A12)","v":11},{"$f":"IF('Öğrenci Listesi'!B12=\"\",\"\",'Öğrenci Listesi'!B12)","v":511},{"$f":"IF('Öğrenci Listesi'!C12=\"\",\"\",'Öğrenci Listesi'!C12)","v":"Eyüp Yıldırım"},null,null,null,null,null,null,null,null,null,null,null,null,null,null,null,null,null,null,null,null,null,null,null,null,null,null,null,null,null,null,null,null,null,null,null,"",""]
[{"$f":"IF('Öğrenci Listesi'!A13=\"\",\"\",'Öğrenci Listesi'!A13)","v":12},{"$f":"IF('Öğrenci Listesi'!B13=\"\",\"\",'Öğrenci Listesi'!B13)","v":512},{"$f":"IF('Öğrenci Listesi'!C13=\"\",\"\",'Öğrenci Listesi'!C13)","v":"Salih Emre Koç"},null,null,null,null,null,null,null,null,null,null,null,null,null,null,null,null,null,null,null,null,null,null,null,null,null,null,null,null,null,null,null,null,null,null,null,"",""]
[{"$f":"IF('Öğrenci Listesi'!A14=\"\",\"\",'Öğrenci Listesi'!A14)","v":13},{"$f":"IF('Öğrenci Listesi'!B14=\"\",\"\",'Öğrenci Listesi'!B14)","v":513},{"$f":"IF('Öğrenci Listesi'!C14=\"\",\"\",'Öğrenci Listesi'!C14)","v":"Recep Eymen Sarı"},null,null,null,null,null,null,null,null,null,null,null,null,null,null,null,null,null,null,null,null,null,null,null,null,null,null,null,null,null,null,null,null,null,null,null,"",""]
[{"$f":"IF('Öğrenci Listesi'!A15=\"\",\"\",'Öğrenci Listesi'!A15)","v":14},{"$f":"IF('Öğrenci Listesi'!B15=\"\",\"\",'Öğrenci Listesi'!B15)","v":514},{"$f":"IF('Öğrenci Listesi'!C15=\"\",\"\",'Öğrenci Listesi'!C15)","v":"Yiğitcan Düzenli"},null,null,null,null,null,null,null,null,null,null,null,null,null,null,null,null,null,null,null,null,null,null,null,null,null,null,null,null,null,null,null,null,null,null,null,"",""]
[{"$f":"IF('Öğrenci Listesi'!A16=\"\",\"\",'Öğrenci Listesi'!A16)","v":15},{"$f":"IF('Öğrenci Listesi'!B16=\"\",\"\",'Öğrenci Listesi'!B16)","v":515},{"$f":"IF('Öğrenci Listesi'!C16=\"\",\"\",'Öğrenci Listesi'!C16)","v":"Üveys Asaf Türkday"},null,null,null,null,null,null,null,null,null,null,null,null,null,null,null,null,null,null,null,null,null,null,null,null,null,null,null,null,null,null,null,null,null,null,null,"",""]
[{"$f":"IF('Öğrenci Listesi'!A17=\"\",\"\",'Öğrenci Listesi'!A17)","v":16},{"$f":"IF('Öğrenci Listesi'!B17=\"\",\"\",'Öğrenci Listesi'!B17)","v":516},{"$f":"IF('Öğrenci Listesi'!C17=\"\",\"\",'Öğrenci Listesi'!C17)","v":"Havvanur Kefelioğlu"},null,null,null,null,null,null,null,null,null,null,null,null,null,null,null,null,null,null,null,null,null,null,null,null,null,null,null,null,null,null,null,null,null,null,null,"",""]
[{"$f":"IF('Öğrenci Listesi'!A18=\"\",\"\",'Öğrenci Listesi'!A18)","v":17},{"$f":"IF('Öğrenci Listesi'!B18=\"\",\"\",'Öğrenci Listesi'!B18)","v":517},{"$f":"IF('Öğrenci Listesi'!C18=\"\",\"\",'Öğrenci Listesi'!C18)","v":"Yağmur Çil"},null,null,null,null,null,null,null,null,null,null,null,null,null,null,null,null,null,null,null,null,null,null,null,null,null,null,null,null,null,null,null,null,null,null,null,"",""]
[{"$f":"IF('Öğrenci Listesi'!A19=\"\",\"\",'Öğrenci Listesi'!A19)","v":18},{"$f":"IF('Öğrenci Listesi'!B19=\"\",\"\",'Öğrenci Listesi'!B19)","v":519},{"$f":"IF('Öğrenci Listesi'!C19=\"\",\"\",'Öğrenci Listesi'!C19)","v":"Elanur Çelikbilek"},null,null,null,null,null,null,null,null,null,null,null,null,null,null,null,null,null,null,null,null,null,null,null,null,null,null,null,null,null,null,null,null,null,null,null,"",""]
[{"$f":"IF('Öğrenci Listesi'!A20=\"\",\"\",'Öğrenci Listesi'!A20)","v":19},{"$f":"IF('Öğrenci Listesi'!B20=\"\",\"\",'Öğrenci Listesi'!B20)","v":520},{"$f":"IF('Öğrenci Listesi'!C20=\"\",\"\",'Öğrenci Listesi'!C20)","v":"Deniz Asaf Aydın"},null,null,null,null,null,null,null,null,null,null,null,null,null,null,null,null,null,null,null,null,null,null,null,null,null,null,null,null,null,null,null,null,null,null,null,"",""]
[{"$f":"IF('Öğrenci Listesi'!A21=\"\",\"\",'Öğrenci Listesi'!A21)","v":20},{"$f":"IF('Öğrenci Listesi'!B21=\"\",\"\",'Öğrenci Listesi'!B21)","v":522},{"$f":"IF('Öğrenci Listesi'!C21=\"\",\"\",'Öğrenci Listesi'!C21)","v":"Yiğit Eymen Büyükkol"},null,null,null,null,null,null,null,null,null,null,null,null,null,null,null,null,null,null,null,null,null,null,null,null,null,null,null,null,null,null,null,null,null,null,null,"",""]
[{"$f":"IF('Öğrenci Listesi'!A22=\"\",\"\",'Öğrenci Listesi'!A22)","v":21},{"$f":"IF('Öğrenci Listesi'!B22=\"\",\"\",'Öğrenci Listesi'!B22)","v":523},{"$f":"IF('Öğrenci Listesi'!C22=\"\",\"\",'Öğrenci Listesi'!C22)","v":"Yaren Su Şahin"},null,null,null,null,null,null,null,null,null,null,null,null,null,null,null,null,null,null,null,null,null,null,null,null,null,null,null,null,null,null,null,null,null,null,null,"",""]
[{"$f":"IF('Öğrenci Listesi'!A23=\"\",\"\",'Öğrenci Listesi'!A23)","v":22},{"$f":"IF('Öğrenci Listesi'!B23=\"\",\"\",'Öğrenci Listesi'!B23)","v":524},{"$f":"IF('Öğrenci Listesi'!C23=\"\",\"\",'Öğrenci Listesi'!C23)","v":"Nuran Ece Yalpur"},null,null,null,null,null,null,null,null,null,null,null,null,null,null,null,null,null,null,null,null,null,null,null,null,null,null,null,null,null,null,null,null,null,null,null,"",""]
[{"$f":"IF('Öğrenci Listesi'!A24=\"\",\"\",'Öğrenci Listesi'!A24)","v":23},{"$f":"IF('Öğrenci Listesi'!B24=\"\",\"\",'Öğrenci Listesi'!B24)","v":525},{"$f":"IF('Öğrenci Listesi'!C24=\"\",\"\",'Öğrenci Listesi'!C24)","v":"Elfin Figen Zeren"},null,null,null,null,null,null,null,null,null,null,null,null,null,null,null,null,null,null,null,null,null,null,null,null,null,null,null,null,null,null,null,null,null,null,null,"",""]
[{"$f":"IF('Öğrenci Listesi'!A25=\"\",\"\",'Öğrenci Listesi'!A25)","v":24},{"$f":"IF('Öğrenci Listesi'!B25=\"\",\"\",'Öğrenci Listesi'!B25)","v":526},{"$f":"IF('Öğrenci Listesi'!C25=\"\",\"\",'Öğrenci Listesi'!C25)","v":"Amine Yılmaz"},null,null,null,null,null,null,null,null,null,null,null,null,null,null,null,null,null,null,null,null,null,null,null,null,null,null,null,null,null,null,null,null,null,null,null,"",""]
[{"$f":"IF('Öğrenci Listesi'!A26=\"\",\"\",'Öğrenci Listesi'!A26)","v":25},{"$f":"IF('Öğrenci Listesi'!B26=\"\",\"\",'Öğrenci Listesi'!B26)","v":527},{"$f":"IF('Öğrenci Listesi'!C26=\"\",\"\",'Öğrenci Listesi'!C26)","v":"Berensu Taşkaya"},null,null,null,null,null,null,null,null,null,null,null,null,null,null,null,null,null,null,null,null,null,null,null,null,null,null,null,null,null,null,null,null,null,null,null,"",""]
[{"$f":"IF('Öğrenci Listesi'!A27=\"\",\"\",'Öğrenci Listesi'!A27)","v":26},{"$f":"IF('Öğrenci Listesi'!B27=\"\",\"\",'Öğrenci Listesi'!B27)","v":528},{"$f":"IF('Öğrenci Listesi'!C27=\"\",\"\",'Öğrenci Listesi'!C27)","v":"Yüsra Dilek"},null,null,null,null,null,null,null,null,null,null,null,null,null,null,null,null,null,null,null,null,null,null,null,null,null,null,null,null,null,null,null,null,null,null,null,"",""]
[{"$f":"IF('Öğrenci Listesi'!A28=\"\",\"\",'Öğrenci Listesi'!A28)","v":27},{"$f":"IF('Öğrenci Listesi'!B28=\"\",\"\",'Öğrenci Listesi'!B28)","v":529},{"$f":"IF('Öğrenci Listesi'!C28=\"\",\"\",'Öğrenci Listesi'!C28)","v":"Elif Acuner"},null,null,null,null,null,null,null,null,null,null,null,null,null,null,null,null,null,null,null,null,null,null,null,null,null,null,null,null,null,null,null,null,null,null,null,"",""]
[{"$f":"IF('Öğrenci Listesi'!A29=\"\",\"\",'Öğrenci Listesi'!A29)","v":28},{"$f":"IF('Öğrenci Listesi'!B29=\"\",\"\",'Öğrenci Listesi'!B29)","v":530},{"$f":"IF('Öğrenci Listesi'!C29=\"\",\"\",'Öğrenci Listesi'!C29)","v":"Ebrar Aydın"},null,null,null,null,null,null,null,null,null,null,null,null,null,null,null,null,null,null,null,null,null,null,null,null,null,null,null,null,null,null,null,null,null,null,null,"",""]
[{"$f":"IF('Öğrenci Listesi'!A30=\"\",\"\",'Öğrenci Listesi'!A30)","v":29},{"$f":"IF('Öğrenci Listesi'!B30=\"\",\"\",'Öğrenci Listesi'!B30)","v":531},{"$f":"IF('Öğrenci Listesi'!C30=\"\",\"\",'Öğrenci Listesi'!C30)","v":"Cansu Dayıoğlu"},null,null,null,null,null,null,null,null,null,null,null,null,null,null,null,null,null,null,null,null,null,null,null,null,null,null,null,null,null,null,null,null,null,null,null,"",""]
[{"$f":"IF('Öğrenci Listesi'!A31=\"\",\"\",'Öğrenci Listesi'!A31)","v":30},{"$f":"IF('Öğrenci Listesi'!B31=\"\",\"\",'Öğrenci Listesi'!B31)","v":532},{"$f":"IF('Öğrenci Listesi'!C31=\"\",\"\",'Öğrenci Listesi'!C31)","v":"Feyzanur Bilir"},null,null,null,null,null,null,null,null,null,null,null,null,null,null,null,null,null,null,null,null,null,null,null,null,null,null,null,null,null,null,null,null,null,null,null,"",""]
[{"$f":"IF('Öğrenci Listesi'!A32=\"\",\"\",'Öğrenci Listesi'!A32)","v":31},{"$f":"IF('Öğrenci Listesi'!B32=\"\",\"\",'Öğrenci Listesi'!B32)","v":533},{"$f":"IF('Öğrenci Listesi'!C32=\"\",\"\",'Öğrenci Listesi'!C32)","v":"Erva Akçay"},null,null,null,null,null,null,null,null,null,null,null,null,null,null,null,null,null,null,null,null,null,null,null,null,null,null,null,null,null,null,null,null,null,null,null,"",""]
[{"$f":"IF('Öğrenci Listesi'!A33=\"\",\"\",'Öğrenci Listesi'!A33)","v":32},{"$f":"IF('Öğrenci Listesi'!B33=\"\",\"\",'Öğrenci Listesi'!B33)","v":651},{"$f":"IF('Öğrenci Listesi'!C33=\"\",\"\",'Öğrenci Listesi'!C33)","v":"Ecrin Zümra Gönci"},null,null,null,null,null,null,null,null,null,null,null,null,null,null,null,null,null,null,null,null,null,null,null,null,null,null,null,null,null,null,null,null,null,null,null,"",""]
[{"$f":"IF('Öğrenci Listesi'!A34=\"\",\"\",'Öğrenci Listesi'!A34)","v":33},{"$f":"IF('Öğrenci Listesi'!B34=\"\",\"\",'Öğrenci Listesi'!B34)","v":659},{"$f":"IF('Öğrenci Listesi'!C34=\"\",\"\",'Öğrenci Listesi'!C34)","v":"Zeynep Sare Koç"},null,null,null,null,null,null,null,null,null,null,null,null,null,null,null,null,null,null,null,null,null,null,null,null,null,null,null,null,null,null,null,null,null,null,null,"",""]
[{"$f":"IF('Öğrenci Listesi'!A35=\"\",\"\",'Öğrenci Listesi'!A35)","v":34},{"$f":"IF('Öğrenci Listesi'!B35=\"\",\"\",'Öğrenci Listesi'!B35)","v":663},{"$f":"IF('Öğrenci Listesi'!C35=\"\",\"\",'Öğrenci Listesi'!C35)","v":"Asel Berra Çalışkan"},null,null,null,null,null,null,null,null,null,null,null,null,null,null,null,null,null,null,null,null,null,null,null,null,null,null,null,null,null,null,null,null,null,null,null,"",""]
[{"$f":"IF('Öğrenci Listesi'!A36=\"\",\"\",'Öğrenci Listesi'!A36)","v":35},{"$f":"IF('Öğrenci Listesi'!B36=\"\",\"\",'Öğrenci Listesi'!B36)","v":670},{"$f":"IF('Öğrenci Listesi'!C36=\"\",\"\",'Öğrenci Listesi'!C36)","v":"Züleyha Baş"},null,null,null,null,null,null,null,null,null,null,null,null,null,null,null,null,null,null,null,null,null,null,null,null,null,null,null,null,null,null,null,null,null,null,null,"",""]